Cogmind - Beta 12 @@@ ROGUE MODE // 2023.03.08 @ 21:42:03 Player: Azken Zutik Result: Destroyed by G-67 Veteran with Plasma Rifle Performance ------------- Evolutions (7) 3500 Regions Visited (37) 7400 Robots Destroyed (831) 4155 Value Destroyed (36825) 36825 Prototype IDs (48) 960 Alien Tech Used (0) 0 Bonus (23139) 23139 TOTAL SCORE: 75979 Bonus ------- High Alert Combat Kills 12644 Follower Combat Kills 4584 Entered Garrisons 1800 Used RIF Installer 4000 Aligned with FarCom 300 Built Enhanced Grunts 300 A7 Reached Mainframe 300 Met R17 at Cetus 500 Friendly Fire -1289 Cogmind --------- Core Integrity 0/1300 Matter 131/300 Energy 96/100 System Corruption 78% Temperature Cool (23) Movement Flying (40) Location -3/Research Parts ------- > --- POWER (3) -------- (None) > --- PROPULSION (7) --- Xenon Bombardment Thruster > --- UTILITY (7) ------ Experimental System Shield > --- WEAPON (4) ------- (None) > --- INVENTORY (5) ---- Advanced Heat Sink Relay Coupler [Proto] (15) Peak State ------------ > --- POWER ------------ Light Antimatter Reactor Micro Antimatter Reactor Micro Antimatter Reactor > --- PROPULSION ------- Flexi-carbon Leg Flexi-carbon Leg Flexi-carbon Leg Flexi-carbon Leg Flexi-carbon Leg Advanced VSS Leg Biometal Leg > --- UTILITY ---------- Advanced Heat Sink Huge Storage Unit Improved Target Analyzer Improved Core Shielding Improved Medium Armor Plating Relay Coupler [Grunt] Relay Coupler [Sentry] > --- WEAPON ----------- Gamma Rifle KE Penetrator Railgun Advanced Remote Datajack > --- INVENTORY -------- Antimatter Reactor Antimatter Reactor Improved Treads Improved Treads Medium Treads Medium Treads Advanced Heat Sink Advanced Energy Well High-capacity Matter Pod Matter Compressor Improved Focal Shield Improved Shock Absorption System Relay Coupler [NC] Relay Coupler [Swarmer] Relay Coupler [Grunt] Relay Coupler [Proto] Relay Coupler [Proto] Relay Coupler [Proto] Dynamic Insulation System High-powered Tractor Beam Gamma Rifle Quantum Rifle Heavy Assault Rifle Thunder Hammer [Rating: 131] Favorites ----------- Power Reinforced Deuterium Engine Engine Reinforced Deuterium Engine Power Core Micro Fission Core Reactor Antimatter Reactor Propulsion Light Treads Treads Light Treads Leg Flexi-carbon Leg Wheel Compact Wheel Hover Unit Improved Antigrav System Flight Unit Xenon Bombardment Thruster Utility Huge Storage Unit Device Hardlight Generator Storage Huge Storage Unit Processor Advanced Targeting Computer Hackware Relay Coupler [NC] Protection Improved Light Armor Plating Weapon Enhanced Autogun Energy Gun Gamma Rifle Energy Cannon Advanced Beam Cannon Ballistic Gun Enhanced Autogun Launcher Guided EMP Blaster Special Weapon Improved Remote Datajack Impact Weapon Heavy Flail Build | -11 -10 -10 -10 -9 -8 -8 -8 -7 -7 -7 -7 -7 -7 -7 -6 -6 -6 -6 -6 -6 -5 -5 -5 -5 -5 -5 -5 -5 -4 -4 -4 -4 -4 -4 -3 -3 -3 ------- Run | Jun Mat Min Exi Min Mat Gar Sto Fac Gar Fac Gar Fac Low Low Fac Was Fac Gar Fac Gar Fac Was Fac Gar Fac Ext Cet Arc Fac Was Fac Gar Fac Gar Res Gar Res Slots Evolved 14 | . . . . . 4 . . 2 . . . . . . 2 . . . . . 2 . . . . . . . 2 . . . . . 2 . . Power 2 | . . . . . . . . 1 . . . . . . . . . . . . . . . . . . . . . . . . . . 1 . . Propulsion 5 | . . . . . 1 . . . . . . . . . 1 . . . . . 1 . . . . . . . 1 . . . . . 1 . . Utility 5 | . . . . . 1 . . 1 . . . . . . 1 . . . . . 1 . . . . . . . 1 . . . . . . . . Weapon 2 | . . . . . 2 . . . . . . . . . . . . . . . . . . . . . . . . . . . . . . . . Parts Attached 1064 | 3 27 11 1 11 69 34 41 21 42 51 24 12 9 4 68 18 16 37 19 46 18 13 74 16 24 25 13 10 34 21 91 54 2 34 18 44 9 Power 69 | . 2 . . . 3 1 . 2 1 4 3 . . . 7 2 . 2 2 1 1 1 2 1 1 3 . 1 . 4 7 6 . 1 2 7 2 Engine 21 | . 2 . . . 3 1 . 1 1 2 . . . . 3 . . 1 . 1 1 1 1 . . . . . . 2 1 . . . . . . Core 20 | . . . . . . . . 1 . 2 3 . . . 3 . . . . . . . 1 1 1 3 . . . . 2 2 . 1 . . . Reactor 28 | . . . . . . . . . . . . . . . 1 2 . 1 2 . . . . . . . . 1 . 2 4 4 . . 2 7 2 Propulsion 200 | 2 18 8 . 6 36 11 11 3 5 8 4 3 . 2 7 2 . 2 . 2 1 1 3 . 3 2 3 1 2 4 18 8 . 5 3 14 2 Treads 131 | 2 10 4 . 3 22 6 7 2 3 6 3 2 . 2 7 2 . 2 . 2 1 1 3 . 3 2 3 1 2 4 18 2 . 1 1 4 . Leg 20 | . . . . . . . . . . . . . . . . . . . . . . . . . . . . . . . . 5 . 4 2 9 . Wheel 45 | . 8 4 . 3 14 5 4 1 2 2 1 1 . . . . . . . . . . . . . . . . . . . . . . . . . Hover 2 | . . . . . . . . . . . . . . . . . . . . . . . . . . . . . . . . 1 . . . . 1 Flight 2 | . . . . . . . . . . . . . . . . . . . . . . . . . . . . . . . . . . . . 1 1 Utility 408 | 1 4 1 . . 15 7 11 8 21 16 9 5 7 . 31 8 5 13 9 24 6 8 47 4 13 8 3 6 10 7 43 23 1 13 6 11 4 Device 234 | 1 . . . . 9 1 8 7 14 13 5 2 4 . 24 3 2 5 8 6 3 2 25 3 11 4 2 3 7 3 31 15 . 6 2 4 1 Storage 8 | . 1 . . . . . 2 . . . . . . . 1 . . . . . 1 . 2 . . . . 1 . . . . . . . . . Processor 20 | . . . . . 2 1 . 1 1 . . . . . 1 . 1 . . 1 . 1 2 . . . . . 1 . 4 2 . 1 . . 1 Hackware 42 | . . . . . . 2 . . 4 2 2 1 1 . 1 1 . 4 1 5 1 1 1 . . 1 . . 1 . . 4 1 3 2 2 1 Protection 104 | . 3 1 . . 4 3 1 . 2 1 2 2 2 . 4 4 2 4 . 12 1 4 17 1 2 3 1 2 1 4 8 2 . 3 2 5 1 Artifact . | . . . . . . . . . . . . . . . . . . . . . . . . . . . . . . . . . . . . . . Weapon 387 | . 3 2 1 5 15 15 19 8 15 23 8 4 2 2 23 6 11 20 8 19 10 3 22 11 7 12 7 2 22 6 23 17 1 15 7 12 1 Energy Gun 11 | . . . . . . . 1 . . . . . . . . . 1 . . . . . . . . . 1 . . . . . . . 1 7 . Energy Cannon 1 | . . . . . . . 1 . . . . . . . . . . . . . . . . . . . . . . . . . . . . . . Ballistic Gun 244 | . 3 2 1 3 15 12 14 5 8 13 4 3 1 2 16 4 7 13 5 9 4 1 13 7 4 6 4 2 12 5 17 10 . 11 5 2 1 Ballistic Cannon . | . . . . . . . . . . . . . . . . . . . . . . . . . . . . . . . . . . . . . . Launcher 41 | . . . . . . . 2 2 1 4 . . . . . . 1 1 3 1 2 . 5 2 . 4 1 . 5 . 5 2 . . . . . Special Weapon 49 | . . . . . . 1 . 1 1 4 2 1 . . 2 1 2 3 . 2 3 1 1 . 3 2 1 . 4 . 1 5 1 4 1 2 . Impact Weapon 41 | . . . . 2 . 2 1 . 5 2 2 . 1 . 5 1 . 3 . 7 1 1 3 2 . . . . 1 1 . . . . . 1 . Slashing Weapon . | . . . . . . . . . . . . . . . . . . . . . . . . . . . . . . . . . . . . . . Piercing Weapon . | . . . . . . . . . . . . . . . . . . . . . . . . . . . . . . . . . . . . . . Special Melee Weapon . | . . . . . . . . . . . . . . . . . . . . . . . . . . . . . . . . . . . . . . Unidentified Prototypes 21 | . . . . . 1 . 6 . . . . . . . 1 . 2 . . . 1 . . . 2 . 2 2 . 2 1 . . . . . 1 Corrupted Parts 15 | . . . . . . 1 1 . . . . . . . . . . . . . . . . . . 1 1 . . 2 . . . . . 9 . System Corruption 86 | . . . . . . 1 7 . . . . . . . . . . . . . . . . . . 10 12 . . 12 . . . . . 44 . Parts Lost 172 | . . . . 1 . . 2 2 1 12 3 . . 8 7 . 2 1 . 1 1 . . 5 1 . 3 1 3 14 22 11 . 12 6 49 4 Power 19 | . . . . . . . . 1 . 2 1 . . 1 2 . . . . . 1 . . 1 . . . . . 1 1 1 . 1 . 5 1 Propulsion 55 | . . . . 1 . . 1 . 1 3 1 . . 3 2 . . . . . . . . . . . 2 . 1 4 9 5 . 3 2 16 1 Utility 48 | . . . . . . . . 1 . 3 . . . 1 1 . 1 1 . 1 . . . 2 1 . 1 . 1 5 4 3 . 5 . 16 1 Weapon 50 | . . . . . . . 1 . . 4 1 . . 3 2 . 1 . . . . . . 2 . . . 1 1 4 8 2 . 3 4 12 1 Highest Loss Streak 21 | . . . . 1 . . 1 1 1 8 2 . . 8 3 . 1 1 . 1 1 . . 3 1 . 2 1 2 12 8 6 . 7 3 21 4 To Critical Strikes 7 | . . . . . . . . . . 1 . . . . . . . . . . . . . . . . 1 . 1 . 2 . . . . 2 . Average Slot Usage (%) 91 | . 99 100 92 85 99 98 91 97 99 98 99 99 100 88 98 89 85 82 79 84 84 73 86 85 90 93 86 98 98 72 91 90 100 96 89 77 17 Engine 6 | . 14 14 14 14 8 8 9 14 11 7 2 . . . 1 6 6 10 6 12 11 11 7 1 . . . . . 1 1 . . . . . . Core 3 | . . . . . . . . . 3 7 11 15 15 12 10 . . . . . . . 2 9 11 10 11 8 5 2 2 5 . 2 4 . . Reactor 1 | . . . . . . . . . . . . . . . . 6 6 2 5 . . . . . . . . 1 5 3 5 3 10 6 4 12 1 Treads 18 | . 16 17 14 16 22 21 18 16 17 18 18 23 23 22 25 16 13 13 13 13 13 17 17 17 20 22 25 29 30 20 26 11 5 3 1 4 . Leg 1 | . . . . . . . . . . . . . . . . . . . . . . . . . . . . . . . . 12 26 26 28 18 . Wheel 3 | . 11 10 14 11 4 5 8 5 4 4 3 . . . . . . . . . . . . . . . . . . . . . . . . . . Device 7 | . . . . . 6 8 8 7 7 3 13 13 11 13 8 6 6 9 6 1 1 1 9 9 13 11 8 7 9 6 9 12 5 8 7 5 . Storage 7 | . 14 14 14 14 9 9 9 7 7 7 7 7 7 7 6 6 6 6 6 6 5 5 5 5 5 5 5 5 5 5 5 5 5 5 4 3 . Processor 2 | . . . . . 2 . . 6 . 1 . . . . . . 6 . . 2 5 6 5 5 5 5 5 5 5 6 11 7 10 8 4 1 . Hackware 2 | . . . . . . . . . 5 9 1 1 . . 5 6 5 4 6 12 9 1 . 5 3 4 . . 3 2 . 4 10 7 7 7 3 Protection 8 | . 13 14 14 14 8 8 9 7 7 6 7 6 10 7 10 12 6 8 6 7 10 4 9 5 4 5 8 13 10 7 6 4 5 4 4 5 1 Ballistic Gun 22 | . 27 28 20 13 35 33 21 25 27 24 28 26 28 22 25 20 25 20 19 21 15 17 22 19 21 20 13 23 19 13 19 20 15 19 15 5 3 Launcher 1 | . . . . . . . 7 2 . . . . . . . . . . . . . . . . . . 2 . . . . . . . . . . Naked Turns 27 | . . . . . . . . . . . . . . . . . . . . . . . . . . . . . . . . . . . . 20 7 Heaviest Build 171 | 13 92 92 98 98 109 112 113 121 119 123 123 118 118 117 132 138 139 146 148 144 140 171 153 145 123 152 152 151 153 167 170 129 127 130 129 161 12 Greatest Support 220 | 40 40 10 10 16 63 60 63 60 60 62 60 68 68 68 104 140 140 140 130 140 168 168 168 157 157 147 147 124 156 220 220 119 108 126 151 151 10 Greatest Overweight (x) 9 | . 9 9 9 9 6 6 7 7 7 7 7 1 1 2 1 1 . 1 1 1 . 1 . . . 1 1 1 1 1 1 5 1 1 1 2 1 Average Overweight (x) 2 | . 8 9 9 6 3 4 5 6 4 4 3 1 1 1 1 . . . . . . . . . . . . 1 . . . . 1 . . . . Largest Inventory Capacity 25 | 8 25 25 25 25 25 25 25 25 25 25 25 25 25 25 25 25 25 25 25 25 25 25 25 25 25 25 25 25 25 25 25 25 25 25 25 25 5 Average Capacity 24 | 8 24 25 25 25 25 25 25 25 25 25 25 25 25 25 25 25 25 25 25 25 25 25 25 25 25 25 25 25 25 25 25 25 25 25 25 24 5 Most Carried 25 | 7 25 25 25 25 25 25 25 25 25 25 25 25 25 24 25 25 25 25 25 25 25 25 25 25 24 25 25 25 25 24 25 25 25 25 25 25 5 Average Carried 23 | 6 22 24 24 24 24 24 24 23 24 23 20 24 24 23 24 24 24 24 24 24 24 24 24 20 22 24 23 24 24 19 22 22 25 23 24 22 2 Final Capacity 25 | 8 25 25 25 25 25 25 25 25 25 25 25 25 25 25 25 25 25 25 25 25 25 25 25 25 25 25 25 25 25 25 25 25 25 25 25 5 5 Final Carried 25 | 7 25 25 25 23 25 25 25 25 25 25 24 25 24 24 25 25 25 25 25 25 25 25 25 19 24 22 25 25 25 24 25 25 25 25 25 5 5 Class Distribution -------------------- 26% | Mutant 21% | Scavenger-Tank 12% | Scavenger-Mutant 9% | Scavenger-Skirmisher 5% | Bothacker-Mutant 4% | Scavenger-Gunner 3% | Botlord-Mutant 3% | Skirmisher 3% | Tank Dominant Class ---------------- Mutant | -10/Materials Mutant | -10/Mines Mutant | -10/Exiles Mutant | -9/Mines Scavenger-Skirmisher | -8/Materials Tank | -8/Garrison Mutant | -8/Storage Skirmisher | -7/Factory Mutant | -7/Garrison Scavenger-Skirmisher | -7/Factory Scavenger-Tank | -7/Garrison Scavenger-Tank | -7/Factory Scavenger-Tank | -7/Lower Caves Scavenger-Tank | -7/Lower Caves Scavenger-Tank | -6/Factory Scavenger-Mutant | -6/Waste Scavenger-Skirmisher | -6/Factory Bothacker-Mutant | -6/Garrison Bothacker-Mutant | -6/Factory Botlord-Mutant | -6/Garrison Botlord-Mutant | -5/Factory Bothacker-Mutant | -5/Waste Bothacker-Gunner | -5/Factory Scavenger-Mutant | -5/Garrison Scavenger-Gunner | -5/Factory Scavenger-Tank | -5/Extension Scavenger-Mutant | -5/Cetus Scavenger-Tank | -5/Archives Scavenger-Tank | -4/Factory Scavenger-Tank | -4/Waste Scavenger-Gunner | -4/Factory Botlord-Tank | -4/Garrison Botlord-Mutant | -4/Factory Botlord-Gunner | -4/Garrison Scavenger-Skirmisher | -3/Research Botlord-Mutant | -3/Garrison Mutant | -3/Research Resources | -11 -10 -10 -10 -9 -8 -8 -8 -7 -7 -7 -7 -7 -7 -7 -6 -6 -6 -6 -6 -6 -5 -5 -5 -5 -5 -5 -5 -5 -4 -4 -4 -4 -4 -4 -3 -3 -3 ----------- Run | Jun Mat Min Exi Min Mat Gar Sto Fac Gar Fac Gar Fac Low Low Fac Was Fac Gar Fac Gar Fac Was Fac Gar Fac Ext Cet Arc Fac Was Fac Gar Fac Gar Res Gar Res Matter Collected 41229 | 389 1364 173 . 185 2041 1188 2476 939 1121 1420 983 314 181 157 3110 1215 1258 1241 681 1590 792 885 2733 761 910 1120 620 767 768 1341 3956 1343 . 1236 879 1056 36 Remotely 11535 | . . . . . . . 167 744 216 1114 174 . . . 830 . 331 . 265 444 163 . 1025 . 581 519 70 175 316 1005 1854 708 . 308 391 135 . Salvage Created 41431 | 333 1291 216 . 293 2449 711 3181 1479 863 1501 572 157 135 254 3572 1714 1627 836 827 855 1113 1225 3011 820 1007 1066 97 381 1037 1378 4512 1024 . 540 435 883 36 Parts 1700 | 34 82 17 . 15 111 38 141 82 47 63 34 7 7 8 145 24 78 29 44 37 32 5 108 32 63 47 1 16 38 18 179 50 . 23 25 17 3 Haulers Intercepted 34 | . 2 . . . 6 . 5 2 . 1 . . . . 4 . 5 . . . 2 . 1 . 1 . . . 2 . 3 . . . . . . Recyclers Shooed 39 | . 4 . . . . . 1 . . 1 . . . . 5 . 4 . . . 1 . 4 . . . . . . . 19 . . . . . . Parts Field Recycled . | . . . . . . . . . . . . . . . . . . . . . . . . . . . . . . . . . . . . . . Retrieved Matter . | . . . . . . . . . . . . . . . . . . . . . . . . . . . . . . . . . . . . . . Parts Self-Destructed 15 | . . . . . . . . . . . . . 7 8 . . . . . . . . . . . . . . . . . . . . . . . Prevented . | . . . . . . . . . . . . . . . . . . . . . . . . . . . . . . . . . . . . . . Kills | -11 -10 -10 -10 -9 -8 -8 -8 -7 -7 -7 -7 -7 -7 -7 -6 -6 -6 -6 -6 -6 -5 -5 -5 -5 -5 -5 -5 -5 -4 -4 -4 -4 -4 -4 -3 -3 -3 ------- Run | Jun Mat Min Exi Min Mat Gar Sto Fac Gar Fac Gar Fac Low Low Fac Was Fac Gar Fac Gar Fac Was Fac Gar Fac Ext Cet Arc Fac Was Fac Gar Fac Gar Res Gar Res Combat Hostiles Destroyed 639 | . 24 7 . 9 34 17 44 27 18 20 14 3 3 6 34 6 22 19 15 30 15 5 53 24 12 15 3 4 15 5 60 23 . 8 6 38 1 Melee 11 | . . . . . . . . . . . . . . . . . . 2 . . . 5 . . . . . . . . . . . . . 4 . Guns 448 | . 24 7 . 9 31 17 20 9 14 12 14 3 3 6 34 6 13 13 4 26 3 . 32 8 12 10 . 4 3 5 42 16 . 8 6 33 1 AOE 169 | . . . . . 3 . 22 13 4 5 . . . . . . 9 4 11 4 12 . 21 16 . 5 3 . 12 . 18 7 . . . . . Classes Destroyed 24 | 3 4 . . 1 3 2 3 . 1 . . . . . 2 1 . 1 . . 1 . 1 . . . . . . . . . . . . 1 . Worker 43 | 4 4 . . . 6 . 2 1 . 1 . 1 . . 3 . 3 . 2 . 3 . 2 . . . . . 4 . 7 . . . . . . Builder 52 | . . . . 1 . . 4 4 . 1 . . . . 5 . 3 . 8 . 5 . 4 . 5 . . . 4 . 8 . . . . . . Tunneler 11 | 7 . . . . . . . . . . . . . . 3 . 1 . . . . . . . . . . . . . . . . . . . . Hauler 34 | . 2 . . . 6 . 5 2 . 1 . . . . 4 . 5 . . . 2 . 1 . 1 . . . 2 . 3 . . . . . . Recycler 54 | 1 4 . . . 7 . 6 . . 2 . . . . 7 . . . 3 . 3 . 8 . 2 2 . . 2 . 7 . . . . . . Carrier 2 | . . . . . . . . . . . . . . . 1 . . . . . . . . . . 1 . . . . . . . . . . . Mechanic 12 | . . . . . . . 3 1 . 1 . . . . . . 1 . . . 1 . . . . . . . 2 . 3 . . . . . . Operator 6 | . . . . . . . . . . . . . . . 1 . 1 . 1 . . . . . 1 1 . 1 . . . . . . . . . Watcher 13 | . 3 . . . 3 . . . . 1 . . . . 1 . . . 2 . . . 2 . . . 1 . . . . . . . . . . Swarmer 100 | . 6 3 . 4 7 . 3 7 4 . 5 . . 2 . . . 7 2 10 . . 12 5 6 4 . . . . 1 8 . 2 . 1 1 Cutter 4 | . . . . . . 2 . . . . . . . . . . . . . 2 . . . . . . . . . . . . . . . . . Saboteur 4 | . . . . . . . . . . . . . . . . . . . . . . . 3 . . . . . . . 1 . . . . . . Grunt 291 | . 18 4 . 5 21 10 30 15 10 6 7 1 3 3 17 . 14 8 13 5 10 . 24 11 . 3 1 . 10 . 19 11 . 4 3 5 . Brawler 22 | . . . . . 1 1 5 1 1 1 . . . . 2 . . . . 4 . . 1 1 . . . . . . 4 . . . . . . Duelist 15 | . . . . . . . 1 1 . . . . . 1 1 . 2 . . . 1 . 2 . . 1 . . 2 . 3 . . . . . . Protector 9 | . . . . . . . 2 1 . 1 . . . . . . 1 1 . . 1 . . . . . . . . . 2 . . . . . . Sentry 39 | . . . . . 4 3 3 1 . . 1 1 . . 5 . . . . 1 . . 1 3 2 2 . 4 . . 7 1 . . . . . Demolisher 1 | . . . . . . . . . . . . . . . . . . . . . 1 . . . . . . . . . . . . . . . . Specialist 10 | . . . . . . . . . 2 4 . . . . . . . 2 . . . . . . . 2 . . . . . . . . . . . Hunter 38 | . . . . . 1 . . 1 1 5 . . . . 3 . 2 . . 3 1 . . 2 . 2 1 . 3 . 13 . . . . . . Programmer 53 | . . . . . . 1 . . . 3 1 1 . . 6 . 3 . . 5 1 . 10 2 4 . . . . . 10 2 . 1 3 . . Behemoth 3 | . . . . . . . . . . . . . . . . . . 1 . . . . . . . 1 . . . . . . . 1 . . . Compactor 16 | . . . . . . . . . . . . . . . . 6 . . . . . 5 . . . . . . . 5 . . . . . . . Cetus Guard 1 | . . . . . . . . . . . . . . . . . . . . . . . . . . . 1 . . . . . . . . . . Assembled 32 | . . . . . . . . . . . . . . . . . . . . . . . . . . . . . . . . . . . . 32 . Surgeon 1 | . . . . . . . . . . . . . . . . . 1 . . . . . . . . . . . . . . . . . . . . Thug 2 | . . . . . . . . . . 2 . . . . . . . . . . . . . . . . . . . . . . . . . . . Infiltrator 1 | . . . . . . . . . . . . . . . . . . . . . . . . . . . . . . . . 1 . . . . . Best Kill Streak 19 | 4 5 2 . 4 4 6 13 9 4 7 4 1 3 6 5 1 11 5 13 7 19 1 9 16 10 8 2 2 9 2 12 8 . 3 3 6 1 Combat Bots Only 16 | . 5 2 . 2 4 6 12 6 4 7 4 1 3 6 4 1 9 5 5 7 9 1 7 16 4 6 2 2 5 2 6 8 . 3 3 6 1 Max Kills in Single Turn 10 | 2 2 1 . 1 3 2 3 2 3 3 2 1 1 2 2 1 10 3 7 2 4 1 6 3 5 5 2 1 7 1 6 4 . 1 2 1 1 Gunslinging 2 | . 1 . . . 2 . 1 . . 1 1 . . 1 1 . . . . 1 . . 1 1 1 . . . . . . 1 . . 1 . . Exploded 7 | . . . . . 3 . 3 1 3 1 . . . . . . 7 3 2 2 3 . 4 3 . 3 2 . 4 . 3 4 . . . . . Melee 1 | . . . . . . . . . . . . . . . . . . 1 . . . 1 . . . . . . . . . . . . . 1 . Uniques/NPCs Destroyed . | . . . . . . . . . . . . . . . . . . . . . . . . . . . . . . . . . . . . . . Combat | -11 -10 -10 -10 -9 -8 -8 -8 -7 -7 -7 -7 -7 -7 -7 -6 -6 -6 -6 -6 -6 -5 -5 -5 -5 -5 -5 -5 -5 -4 -4 -4 -4 -4 -4 -3 -3 -3 -------- Run | Jun Mat Min Exi Min Mat Gar Sto Fac Gar Fac Gar Fac Low Low Fac Was Fac Gar Fac Gar Fac Was Fac Gar Fac Ext Cet Arc Fac Was Fac Gar Fac Gar Res Gar Res Damage Taken 39511 | . 1056 364 . 95 1068 571 883 489 373 2377 524 192 81 928 1643 . 1197 734 660 1058 573 . 2191 1715 515 955 550 763 813 1370 5481 2091 64 1641 1287 4495 714 Core 3990 | . 102 85 . 27 71 72 80 62 51 313 61 30 8 57 88 . 31 83 11 90 55 . 47 83 19 55 . 52 102 179 326 243 . 199 113 953 242 Absorbed by Shields 2735 | . . . . . 24 136 88 96 8 8 208 76 24 123 88 . 48 52 . . . . 188 28 64 351 207 . . . 759 . . . . 159 . Reduced by Siege Mode 118 | . . . . . . . . . . . . . . . . . 19 . . 33 26 . 40 . . . . . . . . . . . . . . Redirected to Shielding 108 | . 5 . . . . . . . . . . . 3 . 23 . . . . . 20 . . . . . . . . . . . . 15 . 42 . Regen/Repaired (Parts) 1542 | . 662 . . . 292 . 83 57 54 216 . . . . . 17 . . . . . . . . . . . . . . 161 . . . . . . Core Remaining (%) 47 | 100 . . . 14 . . 59 . . . . . . 16 . . . . . 64 . . . . . . . 68 . . . . . 8 . . . Volleys Fired 1902 | 19 104 26 . 1 113 49 91 59 43 67 50 11 7 11 130 88 54 51 25 54 32 20 108 35 25 52 15 30 22 44 162 62 1 50 30 132 29 Largest 4 | 2 2 2 . 1 4 4 4 4 4 4 4 4 4 4 4 2 4 4 4 4 4 3 4 4 4 4 4 4 4 4 4 4 1 4 4 4 1 Hottest 270 | 40 40 40 . 20 94 94 100 100 100 103 106 102 102 102 128 63 106 86 73 88 118 60 103 109 109 141 270 113 160 140 133 118 10 104 126 232 35 Shots Fired 5233 | 38 208 52 . 26 458 157 249 137 139 164 139 32 30 35 440 169 193 125 62 167 70 38 352 78 87 113 29 84 58 119 478 168 1 146 80 286 26 Gun 4909 | 38 208 52 . 26 458 153 215 107 131 135 130 28 30 35 438 161 188 107 51 159 49 29 342 67 85 88 18 84 46 119 463 157 . 138 72 276 26 Cannon . | . . . . . . . . . . . . . . . . . . . . . . . . . . . . . . . . . . . . . . Launcher 166 | . . . . . . . 33 29 3 21 . . . . . . . 2 9 3 11 . 7 11 . 4 10 . 6 . 15 2 . . . . . Special 158 | . . . . . . 4 1 1 5 8 9 4 . . 2 8 5 16 2 5 10 9 3 . 2 21 1 . 6 . . 9 1 8 8 10 . Kinetic 4732 | 38 208 52 . 26 458 153 215 107 131 135 130 28 30 35 438 161 188 107 51 159 49 29 342 67 85 88 17 84 46 119 463 157 . 138 72 100 26 Thermal 123 | . . . . . . . . . . . . . . . . . . . . . . . . . . . 1 . . . . . . . . 122 . Explosive 80 | . . . . . . . . . . . . . . . . . . 2 9 3 11 . 7 11 . 4 10 . 6 . 15 2 . . . . . Electromagnetic 140 | . . . . . . . 33 29 3 21 . . . . . . . . . . . . . . . . . . . . . . . . . 54 . Robot Hit Streak 45 | 16 14 8 . 13 22 10 18 17 13 12 11 7 13 9 25 45 23 11 7 17 20 14 39 20 21 15 5 9 23 34 28 18 3 20 11 12 5 Robot Miss Streak 11 | 1 2 4 . 1 6 4 5 4 3 4 5 3 3 6 4 2 5 6 6 11 4 1 4 2 2 3 4 3 2 2 4 5 . 4 2 8 3 Penetration Max 2 | . . . . . . . . . . . . 1 . . 1 1 1 . . . . . 1 1 1 1 . 1 . 1 2 . . . 1 . . Secondary Targets 81 | . 6 . . . 2 3 8 . 4 3 4 . 1 3 3 1 1 2 . 8 . . 6 3 1 2 . . . 2 5 5 . 3 2 3 . Max Gunslinging Chain 2 | . 1 . . . 2 1 2 . 1 1 2 . 1 1 1 1 1 1 . 1 . . 1 1 1 1 . . . 1 1 1 . 1 2 1 . Autonomous 49 | . . . . 25 10 14 . . . . . . . . . . . . . . . . . . . . . . . . . . . . . . . Shots Hit Robots 3619 | 30 155 35 . 22 292 91 138 70 86 84 62 18 19 29 281 157 122 98 50 130 52 122 262 61 55 86 14 66 40 93 346 101 1 103 60 171 17 Core Hits 2356 | 13 54 13 . 11 120 35 122 57 38 66 27 8 8 24 128 21 97 59 95 119 103 8 211 87 35 67 76 23 101 16 327 65 . 24 17 74 7 Critical Kills 47 | . . . . . 1 . 2 . . . 2 . . . 5 2 . . . 1 . 2 1 . 3 . . 2 . 1 11 6 . 1 2 4 1 Critical Parts Destroyed 65 | . 1 . . . . . 1 . . . 1 . 1 . 4 1 1 2 . 1 . 6 4 . 1 8 1 . 1 1 11 7 . 4 3 . 5 Critical Strikes 138 | . 1 . . . 1 . 3 . . . 3 . 1 . 9 6 1 2 . 2 . 14 5 . 4 8 1 3 1 5 22 13 . 8 5 14 6 Burn 8 | . . . . . . . . . . . . . . . . . . . . . . . . . . . . . . . . . . . . 8 . Destroy 108 | . 1 . . . 1 . 3 . . . 3 . 1 . 9 5 1 . . 1 . . 5 . 4 8 1 3 1 5 22 13 . 8 5 2 6 Corrupt 2 | . . . . . . . . . . . . . . . . . . . . . . . . . . . . . . . . . . . . 2 . Smash 20 | . . . . . . . . . . . . . . . . 1 . 2 . 1 . 14 . . . . . . . . . . . . . 2 . Melee Attacks 200 | . . . . 7 . 3 2 . 7 7 2 . 9 . 4 8 . 15 . 20 2 92 5 2 . . . . 2 3 . . . . . 10 . Impact 200 | . . . . 7 . 3 2 . 7 7 2 . 9 . 4 8 . 15 . 20 2 92 5 2 . . . . 2 3 . . . . . 10 . Slashing . | . . . . . . . . . . . . . . . . . . . . . . . . . . . . . . . . . . . . . . Piercing . | . . . . . . . . . . . . . . . . . . . . . . . . . . . . . . . . . . . . . . Sneak Attacks 104 | . . . . . . . . . . . . . . . . 8 . 3 . 1 . 92 . . . . . . . . . . . . . . . Combat Hostiles 104 | . . . . . . . . . . . . . . . . 8 . 3 . 1 . 92 . . . . . . . . . . . . . . . Follow-up Attacks . | . . . . . . . . . . . . . . . . . . . . . . . . . . . . . . . . . . . . . . Damage Inflicted 113725 | 380 2195 418 . 717 4126 1791 5458 3220 1577 3306 1003 313 346 428 6971 4115 4599 3165 3498 3204 3065 9246 9312 3011 1916 2997 1750 1796 4020 2544 12940 2820 . 1649 1359 4326 144 Guns 70144 | 380 2095 418 . 717 3912 1791 2387 1066 1351 1433 1003 281 346 428 6695 3215 2870 1527 853 2531 653 542 6568 1249 1907 1664 254 1796 595 2544 8095 1944 . 1649 1338 3904 143 Cannons . | . . . . . . . . . . . . . . . . . . . . . . . . . . . . . . . . . . . . . . Explosions 32068 | . 100 . . . 214 . 3071 2154 226 1856 . . . . 276 . 1687 291 2645 590 2412 . 2741 1762 . 1333 1496 . 3416 . 4845 876 . . . 77 . Melee 11379 | . . . . . . . . . . . . . . . . 900 . 1347 . 83 . 8704 . . . . . . . . . . . . . 345 . Ramming 134 | . . . . . . . . . . 17 . 32 . . . . 42 . . . . . 3 . 9 . . . 9 . . . . . 21 . 1 Kinetic 67708 | 380 2095 418 . 717 3912 1791 2387 1066 1351 1433 1003 281 346 428 6695 3215 2870 1527 853 2531 653 542 6568 1249 1907 1664 254 1796 595 2544 8095 1944 . 1649 1338 1468 143 Thermal 4834 | . 100 . . . 214 . 773 130 88 472 . . . . . . 517 . . . . . . . . . . . 850 . . . . . . 1690 . Explosive 23533 | . . . . . . . . 530 . . . . . . 276 . 1170 291 2645 590 2412 . 2741 1762 . 1333 1496 . 2566 . 4845 876 . . . . . Electromagnetic 6137 | . . . . . . . 2298 1494 138 1384 . . . . . . . . . . . . . . . . . . . . . . . . . 823 . Impact 11379 | . . . . . . . . . . . . . . . . 900 . 1347 . 83 . 8704 . . . . . . . . . . . . . 345 . Slashing . | . . . . . . . . . . . . . . . . . . . . . . . . . . . . . . . . . . . . . . Piercing . | . . . . . . . . . . . . . . . . . . . . . . . . . . . . . . . . . . . . . . Highest Corruption 94 | . . . . . 4 6 13 5 5 7 7 7 7 7 3 3 4 5 5 7 2 47 67 69 72 82 94 94 . 51 55 57 57 59 7 78 78 Average Corruption 24 | . . . . . 4 4 11 5 5 5 7 7 7 7 2 3 3 4 5 6 2 41 56 68 70 72 84 94 . 33 52 55 57 57 5 32 78 Corruption Purged . | . . . . . . . . . . . . . . . . . . . . . . . . . . . . . . . . . . . . . . Corruption Blocked . | . . . . . . . . . . . . . . . . . . . . . . . . . . . . . . . . . . . . . . Effects 1691 | . . . . . 36 40 228 1 26 32 25 20 20 5 57 40 43 31 15 34 5 100 162 64 52 80 38 45 . 36 178 92 2 65 3 105 11 Message Errors 336 | . . . . . 8 12 60 . 12 9 7 4 6 1 11 9 8 7 3 5 1 21 26 12 11 10 6 5 . 4 27 18 1 7 2 22 1 Matter Fused 356 | . . . . . 7 10 54 1 5 8 7 5 3 1 12 9 10 7 5 11 3 27 37 6 8 19 5 5 . 10 30 13 1 15 . 20 2 Heat Flow Errors 170 | . . . . . 8 6 29 . 1 3 1 3 3 . 8 7 4 2 2 5 . 15 17 8 6 7 3 3 . 4 13 3 . 4 . 4 1 Energy Discharges 176 | . . . . . 4 4 27 . 3 3 1 1 2 . 8 4 4 3 1 7 . 14 14 12 4 8 7 4 . 2 13 8 . 4 1 12 1 Parts Rejected 27 | . . . . . . 1 . . . . . 2 . 1 . . 1 2 3 . . 1 1 1 2 1 . . . 1 4 3 . . . 3 . Parts Fused 14 | . . . . . . . 3 . 1 . . . . . 3 . . . . . . . . . . 1 . . . 1 3 2 . . . . . Data Loss (minor) 154 | . . . . . 2 3 21 . 2 3 4 3 3 . 4 5 4 4 . 2 1 12 13 5 2 10 4 2 . 2 18 11 . 7 . 7 . Data Loss (major) 73 | . . . . . 3 . 17 . . 1 1 1 . 1 6 2 2 . . . . 4 5 5 2 . 3 . . 4 7 2 . 5 . 2 . Misfires 75 | . . . . . 4 3 10 . 1 2 1 1 2 . 1 2 3 2 . . . 4 3 2 3 4 4 1 . 2 9 3 . 2 . 6 . Alerts 38 | . . . . . . 1 6 . . . 1 . 1 1 3 1 2 2 . 1 . . 3 . 4 2 . 1 . 1 2 3 . 1 . 2 . Misdirections 25 | . . . . . . . . . . . . . . . . . . . . . . . . . 2 2 . 1 . 1 5 . . 3 . 8 3 Weapon Failures 247 | . . . . . . . 1 . 1 3 2 . . . 1 1 5 2 1 3 . 2 43 13 8 16 6 23 . 4 47 26 . 17 . 19 3 Overload Shots 1 | . . . . . . . . . . . . . . . . . . . . . . . . . . . 1 . . . . . . . . . . Overflow Damage 2540 | . . . . . . . 96 71 . 63 . . . . 38 99 173 476 56 54 25 1031 4 33 . 4 . . 176 . 48 8 . . 1 84 . Projectiles . | . . . . . . . . . . . . . . . . . . . . . . . . . . . . . . . . . . . . . . Explosions 795 | . . . . . . . 96 71 . 63 . . . . 38 . 173 . 56 . 25 . 4 33 . 4 . . 176 . 48 8 . . . . . Melee 1745 | . . . . . . . . . . . . . . . . 99 . 476 . 54 . 1031 . . . . . . . . . . . . 1 84 . Knockbacks . | . . . . . . . . . . . . . . . . . . . . . . . . . . . . . . . . . . . . . . Impact . | . . . . . . . . . . . . . . . . . . . . . . . . . . . . . . . . . . . . . . Kinetic . | . . . . . . . . . . . . . . . . . . . . . . . . . . . . . . . . . . . . . . Secondary . | . . . . . . . . . . . . . . . . . . . . . . . . . . . . . . . . . . . . . . Self-Inflicted Damage 1317 | . . . . . . . 29 41 . 92 . . . . . . 202 11 60 . 77 . 22 325 . 128 37 . 135 . 56 102 . . . . . Shots 62 | . . . . . . . 2 3 . 2 . . . . . . 3 1 3 . 4 . 2 25 . 5 2 . 3 . 3 4 . . . . . Rammed 12 | . . . . . . . . . . 2 . 3 . . . . 4 . . . . . 1 . 1 . . . . . . . . . . . 1 Targets Rammed 14 | . . . . . . . . . . 2 . 3 . . . . 4 . . . . . 1 . 1 . . . 1 . . . . . 1 . 1 Kicked 1 | . . . . . . . . . . . . . . . . . . . . . . . . . . . . . . . . . . . 1 . . Crushed 1 | . . . . . . . . . . . . . . . . . . . . . . . . . . . . . 1 . . . . . . . . Highest Temperature 612 | . 16 22 . 2 299 268 612 311 226 329 146 162 398 104 247 254 193 163 179 314 311 343 276 454 184 210 198 242 97 339 358 217 . 129 37 405 99 Average Temperature 84 | . 4 5 . 2 58 94 94 79 78 88 19 70 158 47 27 104 45 60 64 106 86 117 87 144 85 82 81 50 37 113 87 49 . 34 23 108 40 Received Heat Transfer 8031 | . 480 174 . 51 503 231 306 77 129 720 124 14 62 404 411 . 218 94 246 123 195 . 462 351 27 269 17 81 81 . 474 455 . 150 223 747 132 Effects 37 | . . . . . . 3 9 . . 4 . . 1 . . . . . . 1 . 4 2 2 . . . . . 1 . . . . . 10 . Shutdowns 7 | . . . . . . . 1 . . . . . . . . . . . . . . 1 . 1 . . . . . . . . . . . 4 . Energy Bleed 12 | . . . . . . 2 1 . . 2 . . 1 . . . . . . . . 2 . . . . . . . 1 . . . . . 3 . Interference 11 | . . . . . . 1 1 . . 2 . . . . . . . . . 1 . 1 2 1 . . . . . . . . . . . 2 . Damage (minor) 3 | . . . . . . . 2 . . . . . . . . . . . . . . . . . . . . . . . . . . . . 1 . Damage (major) 4 | . . . . . . . 4 . . . . . . . . . . . . . . . . . . . . . . . . . . . . . . Siege Activations 17 | . . . . . . . . . . . . . . . . . 4 1 . 5 1 . 6 . . . . . . . . . . . . . . Total Turns 264 | . . . . . . . . . . . . . . . . . 78 33 . 57 21 . 75 . . . . . . . . . . . . . . Longest Duration 39 | . . . . . . . . . . . . . . . . . 39 33 . 25 21 . 16 . . . . . . . . . . . . . . Robots Corrupted 10 | . . . . . . . 2 5 . 2 . . . . . . . . . . . . . . . . . . . . . . . . . 1 . Combat Hostiles 10 | . . . . . . . 2 5 . 2 . . . . . . . . . . . . . . . . . . . . . . . . . 1 . Parts Fried 27 | . . . . . . . 5 14 1 2 . . . . . . . 2 . . . . . . . 2 . . . . . . . . . 1 . Impact Corruptions 30 | . . . . . . . . . . . . . . . . 1 . 7 . 1 . 18 . . . . . . . . . . . . 1 2 . Robots Melted 1 | . . . . . . . . . . 1 . . . . . . . . . . . . . . . . . . . . . . . . . . . Combat Hostiles 1 | . . . . . . . . . . 1 . . . . . . . . . . . . . . . . . . . . . . . . . . . Parts Melted 3 | . . . . . . . . . . 2 . . . . . . . . . . . . . . . . . . 1 . . . . . . . . Heat Transferred 6422 | . 100 . . . 150 . 900 150 100 500 . . . . . . 300 . . . . . . . . . . . 650 . . . . . . 3572 . Parts Sabotaged . | . . . . . . . . . . . . . . . . . . . . . . . . . . . . . . . . . . . . . . Parts Stolen . | . . . . . . . . . . . . . . . . . . . . . . . . . . . . . . . . . . . . . . Parts Stripped . | . . . . . . . . . . . . . . . . . . . . . . . . . . . . . . . . . . . . . . Power Chain Reactions 18 | . . . . . . . 9 3 1 4 . . . . . . . . . . . . . . . . . . . . . . . . . 1 . Missiles Intercepted . | . . . . . . . . . . . . . . . . . . . . . . . . . . . . . . . . . . . . . . Alert | -11 -10 -10 -10 -9 -8 -8 -8 -7 -7 -7 -7 -7 -7 -7 -6 -6 -6 -6 -6 -6 -5 -5 -5 -5 -5 -5 -5 -5 -4 -4 -4 -4 -4 -4 -3 -3 -3 ------- Run | Jun Mat Min Exi Min Mat Gar Sto Fac Gar Fac Gar Fac Low Low Fac Was Fac Gar Fac Gar Fac Was Fac Gar Fac Ext Cet Arc Fac Was Fac Gar Fac Gar Res Gar Res Peak Influence 2071 | 60 267 168 . 119 653 1142 1503 1326 1519 1240 1246 822 . . 987 342 1405 1749 1533 2071 1412 539 1134 1384 1006 1367 1475 706 1163 417 1490 1591 850 659 391 364 114 Initial 1087 | . 39 103 . . 8 424 556 683 861 797 740 646 . . 204 341 . 983 917 943 1087 494 . 793 726 492 764 587 247 407 56 1043 835 595 361 144 99 Average 616 | 33 112 59 . 46 267 742 1050 859 1257 958 1030 695 . . 259 106 744 1331 1175 1546 1033 228 552 1224 874 812 1153 677 841 281 493 1383 841 602 308 249 100 Maximum Alert Level 5 | . 1 . . . 2 4 4 4 4 4 4 3 . . 3 1 4 5 4 5 4 2 4 4 3 4 4 3 4 2 4 4 3 2 1 1 . Low Security (%) 28 | 100 76 100 . 100 26 . . . . . . . . . 59 77 26 . . . . 59 6 . . . . . . 33 21 . . . 33 16 100 Level 1 14 | . 23 . . . 51 . . . . . . . . . 22 22 3 . . . . 20 18 . . . . . 23 24 20 . . . 66 83 . Level 2 13 | . . . . . 21 41 6 38 . . . 38 . . 6 . 2 . . . . 20 43 . . 28 . 37 . 41 36 . . 100 . . . Level 3 24 | . . . . . . 47 59 31 25 90 53 61 . . 11 . 37 9 45 3 74 . 26 9 100 58 45 62 61 . 12 4 100 . . . . Level 4 18 | . . . . . . 10 34 30 74 9 46 . . . . . 29 74 54 51 25 . 5 90 . 12 54 . 15 . 9 95 . . . . . Level 5 1 | . . . . . . . . . . . . . . . . . . 16 . 44 . . . . . . . . . . . . . . . . . High Security . | . . . . . . . . . . . . . . . . . . . . . . . . . . . . . . . . . . . . . . Max Security . | . . . . . . . . . . . . . . . . . . . . . . . . . . . . . . . . . . . . . . Squads Dispatched 150 | . 7 1 . 1 6 . 12 9 . 15 . 3 . 1 22 . 16 . 8 . 4 . 16 . 2 5 . . 5 . 16 . . . 1 . . Investigation 17 | . 6 1 . . 3 . 2 . . 1 . 1 . . . . . . . . . . 2 . . . . . 1 . . . . . . . . Extermination 23 | . . . . . . . . 1 . 2 . 1 . . 6 . 3 . . . . . 4 . 1 . . . . . 4 . . . 1 . . Reinforcement 49 | . 1 . . 1 2 . 3 3 . 3 . 1 . . 7 . 8 . 3 . 2 . 4 . 1 3 . . 1 . 6 . . . . . . Assault 38 | . . . . . 1 . 7 1 . 3 . . . 1 5 . 2 . 2 . 2 . 3 . . 2 . . 3 . 6 . . . . . . Garrison 23 | . . . . . . . . 4 . 6 . . . . 4 . 3 . 3 . . . 3 . . . . . . . . . . . . . . Intercept . | . . . . . . . . . . . . . . . . . . . . . . . . . . . . . . . . . . . . . . Searches Triggered . | . . . . . . . . . . . . . . . . . . . . . . . . . . . . . . . . . . . . . . Construction Impeded 24 | . . . . 1 . . 2 2 . 1 . . . . 5 . 1 . 2 . 1 . 2 . 1 1 . . . . 5 . . . . . . Haulers Reinforced 9 | . . . . . . . . 1 . . . . . . 1 . 3 . . . 1 . 2 . . . . . . . 1 . . . . . . Active Scanning Responses . | . . . . . . . . . . . . . . . . . . . . . . . . . . . . . . . . . . . . . . Cargo Convoy Interrupts 2 | . . . . . . . . . . 1 . . . . 1 . . . . . . . . . . . . . . . . . . . . . . Alert ID Control Effect 23 | . . . . . . . . . . . . . . . . . . . . . 7 . 6 . . . . . 1 . . 4 . 3 1 1 . Stealth | -11 -10 -10 -10 -9 -8 -8 -8 -7 -7 -7 -7 -7 -7 -7 -6 -6 -6 -6 -6 -6 -5 -5 -5 -5 -5 -5 -5 -5 -4 -4 -4 -4 -4 -4 -3 -3 -3 --------- Run | Jun Mat Min Exi Min Mat Gar Sto Fac Gar Fac Gar Fac Low Low Fac Was Fac Gar Fac Gar Fac Was Fac Gar Fac Ext Cet Arc Fac Was Fac Gar Fac Gar Res Gar Res Distress Signals 42 | . 2 . . . 8 . 2 5 . 1 . 1 . . 1 . 1 . 3 . . . 5 . . 2 2 . 2 . 6 . . . 1 . . Communications Jammed . | . . . . . . . . . . . . . . . . . . . . . . . . . . . . . . . . . . . . . . Distress Signals . | . . . . . . . . . . . . . . . . . . . . . . . . . . . . . . . . . . . . . . Times Spotted 990 | . 32 9 . 4 56 19 62 26 21 59 18 8 4 23 36 6 41 29 33 38 22 6 65 24 16 39 22 22 25 9 78 38 1 14 10 71 4 Peak Tracking Total 14 | . 5 3 . 3 4 3 9 5 6 12 3 2 4 13 4 2 8 6 9 6 6 2 10 7 3 12 8 1 6 4 6 6 1 6 4 14 4 Tactical Retreats 72 | . 2 3 . . 5 . 7 3 2 5 2 . 1 2 5 . . 1 . 2 . . . . 3 2 . . . 4 3 5 . 1 . 14 . Traps | -11 -10 -10 -10 -9 -8 -8 -8 -7 -7 -7 -7 -7 -7 -7 -6 -6 -6 -6 -6 -6 -5 -5 -5 -5 -5 -5 -5 -5 -4 -4 -4 -4 -4 -4 -3 -3 -3 ------- Run | Jun Mat Min Exi Min Mat Gar Sto Fac Gar Fac Gar Fac Low Low Fac Was Fac Gar Fac Gar Fac Was Fac Gar Fac Ext Cet Arc Fac Was Fac Gar Fac Gar Res Gar Res Traps Triggered 33 | . 1 . . . 1 8 4 . 1 . 3 . . . 2 . . . 1 2 2 . 1 1 . . . . 1 . . . . 3 1 1 . Indirectly . | . . . . . . . . . . . . . . . . . . . . . . . . . . . . . . . . . . . . . . Trap Hack Attempts . | . . . . . . . . . . . . . . . . . . . . . . . . . . . . . . . . . . . . . . Triggered . | . . . . . . . . . . . . . . . . . . . . . . . . . . . . . . . . . . . . . . Disarmed . | . . . . . . . . . . . . . . . . . . . . . . . . . . . . . . . . . . . . . . Reprogrammed . | . . . . . . . . . . . . . . . . . . . . . . . . . . . . . . . . . . . . . . Reused . | . . . . . . . . . . . . . . . . . . . . . . . . . . . . . . . . . . . . . . Traps Extracted . | . . . . . . . . . . . . . . . . . . . . . . . . . . . . . . . . . . . . . . Installed . | . . . . . . . . . . . . . . . . . . . . . . . . . . . . . . . . . . . . . . Triggered 3 | . . . . . . . . . . . . . . 2 1 . . . . . . . . . . . . . . . . . . . . . . Machines | -11 -10 -10 -10 -9 -8 -8 -8 -7 -7 -7 -7 -7 -7 -7 -6 -6 -6 -6 -6 -6 -5 -5 -5 -5 -5 -5 -5 -5 -4 -4 -4 -4 -4 -4 -3 -3 -3 ---------- Run | Jun Mat Min Exi Min Mat Gar Sto Fac Gar Fac Gar Fac Low Low Fac Was Fac Gar Fac Gar Fac Was Fac Gar Fac Ext Cet Arc Fac Was Fac Gar Fac Gar Res Gar Res Machines Disabled 136 | . 2 . . 1 3 5 3 4 4 1 2 . . . 16 . 19 6 . 6 8 . 6 . 2 3 6 2 28 . 5 2 . 1 . 1 . Max in Single Turn 22 | . 2 . . 1 3 1 1 2 1 1 1 . . . 4 . 3 1 . 1 4 . 1 . 1 1 2 1 22 . 1 1 . 1 . 1 . Garrison Access 2 | . . . . . . . . . . . . . . . 1 . . . . . . . . . . . . . 1 . . . . . . . . Garrison Relay 20 | . . . . . . 4 . . 2 . 2 . . . . . . 3 . 6 . . . . . . . . . . . 1 . 1 . 1 . Machines Repaired 1 | . 1 . . . . . . . . . . . . . . . . . . . . . . . . . . . . . . . . . . . . Machines Sabotaged . | . . . . . . . . . . . . . . . . . . . . . . . . . . . . . . . . . . . . . . Overloaded Fab Kills . | . . . . . . . . . . . . . . . . . . . . . . . . . . . . . . . . . . . . . . Hacking | -11 -10 -10 -10 -9 -8 -8 -8 -7 -7 -7 -7 -7 -7 -7 -6 -6 -6 -6 -6 -6 -5 -5 -5 -5 -5 -5 -5 -5 -4 -4 -4 -4 -4 -4 -3 -3 -3 --------- Run | Jun Mat Min Exi Min Mat Gar Sto Fac Gar Fac Gar Fac Low Low Fac Was Fac Gar Fac Gar Fac Was Fac Gar Fac Ext Cet Arc Fac Was Fac Gar Fac Gar Res Gar Res Machines Accessed 77 | . 8 1 2 . 9 3 5 2 3 1 1 1 . . 4 . 5 . 2 1 2 . 8 2 1 6 . 1 2 . 2 1 1 1 1 1 . Terminals 47 | . 6 . . . 4 3 5 1 3 . 1 1 . . 2 . 2 . 1 1 1 . 2 2 1 6 . . 2 . . 1 . 1 . 1 . Fabricators 6 | . . . . . . . . . . . . . . . 1 . 2 . . . . . 3 . . . . . . . . . . . . . . Repair Stations 4 | . 1 . . . 2 . . . . . . . . . . . . . . . . . . . . . . . . . 1 . . . . . . Recycling Units 4 | . 1 . . . 2 . . . . . . . . . . . . . . . . . 1 . . . . . . . . . . . . . . Scanalyzers 1 | . . . . . . . . . . . . . . . . . . . . . 1 . . . . . . . . . . . . . . . . Garrison Access 11 | . . . . . 1 . . 1 . 1 . . . . 1 . 1 . 1 . . . 2 . . . . . . . 1 . 1 . 1 . . Total Hacks 236 | . 48 1 24 . 30 3 7 6 3 1 1 1 . . 8 . 8 . 2 3 8 . 14 3 3 13 . 25 9 . 8 2 1 1 1 2 . Successful 147 | . 32 1 24 . 15 1 3 5 1 1 1 1 . . 4 . 4 . 1 1 6 . 5 . 2 4 . 25 3 . 5 . 1 . 1 . . Failed 88 | . 15 . . . 15 2 4 1 2 . . . . . 4 . 4 . 1 2 2 . 9 3 1 9 . . 6 . 3 2 . 1 . 2 . Catastrophic 23 | . . . . . 2 1 1 . 2 . . . . . . . 2 . 1 . 1 . 2 1 . 5 . . 1 . . 2 . 1 . 1 . Database Lockouts 1 | . 1 . . . . . . . . . . . . . . . . . . . . . . . . . . . . . . . . . . . . Manual 82 | . 26 . 1 . 18 . 4 2 . . . . . . 5 . 4 . 1 . 4 . 3 . 2 6 1 . 5 . . . . . . . . Terminals 113 | . 24 . . . 15 3 7 5 3 . 1 1 . . 6 . 3 . 1 3 6 . 2 3 3 13 . . 9 . . 2 . 1 . 2 . Fabricators 14 | . . . . . . . . . . . . . . . 1 . 4 . . . . . 9 . . . . . . . . . . . . . . Repair Stations 39 | . 23 . . . 9 . . . . . . . . . . . . . . . . . . . . . . . . . 7 . . . . . . Recycling Units 6 | . 1 . . . 4 . . . . . . . . . . . . . . . . . 1 . . . . . . . . . . . . . . Scanalyzers 2 | . . . . . . . . . . . . . . . . . . . . . 2 . . . . . . . . . . . . . . . . Garrison Access 12 | . . . . . 2 . . 1 . 1 . . . . 1 . 1 . 1 . . . 2 . . . . . . . 1 . 1 . 1 . . Terminal Hacks 78 | . 5 1 24 . 2 1 3 3 1 . 1 1 . . 1 . 1 . . 1 3 . . . 1 3 . 25 1 . . . . . . . . Record 48 | . . . 23 . . . . . . . . . . . . . . . . . . . . . . . . 25 . . . . . . . . . Robot Analysis 7 | . 5 . . . 2 . . . . . . . . . . . . . . . . . . . . . . . . . . . . . . . . Open Door 7 | . . 1 . . . 1 1 . . . 1 . . . . . . . . . . . . . . 3 . . . . . . . . . . . Branch Access Points 1 | . . . . . . . . . . . . . . . . . . . . . 1 . . . . . . . . . . . . . . . . Emergency Access Points 4 | . . . . . . . . 1 . . . . . . 1 . . . . 1 1 . . . . . . . . . . . . . . . . Unreport Threat 2 | . . . . . . . . . . . . . . . . . . . . . 1 . . . . . . . 1 . . . . . . . . Hauler Manifests 2 | . . . . . . . . 1 . . . . . . . . 1 . . . . . . . . . . . . . . . . . . . . Zone Layout 5 | . . . . . . . 2 1 . . . 1 . . . . . . . . . . . . 1 . . . . . . . . . . . . Security Stations 1 | . . . . . . . . . 1 . . . . . . . . . . . . . . . . . . . . . . . . . . . . EX-Prototype ID Bank 1 | . . . 1 . . . . . . . . . . . . . . . . . . . . . . . . . . . . . . . . . . Fabricator Hacks 4 | . . . . . . . . . . . . . . . 1 . . . . . . . 3 . . . . . . . . . . . . . . Load Schematic 2 | . . . . . . . . . . . . . . . . . . . . . . . 2 . . . . . . . . . . . . . . Build 2 | . . . . . . . . . . . . . . . 1 . . . . . . . 1 . . . . . . . . . . . . . . Repair Station Hacks 31 | . 20 . . . 7 . . . . . . . . . . . . . . . . . . . . . . . . . 4 . . . . . . Scan Component 16 | . 10 . . . 4 . . . . . . . . . . . . . . . . . . . . . . . . . 2 . . . . . . Repair 15 | . 10 . . . 3 . . . . . . . . . . . . . . . . . . . . . . . . . 2 . . . . . . Recycling Unit Hacks . | . . . . . . . . . . . . . . . . . . . . . . . . . . . . . . . . . . . . . . Scanalyzer 2 | . . . . . . . . . . . . . . . . . . . . . 2 . . . . . . . . . . . . . . . . Insert Component 1 | . . . . . . . . . . . . . . . . . . . . . 1 . . . . . . . . . . . . . . . . Analyze 1 | . . . . . . . . . . . . . . . . . . . . . 1 . . . . . . . . . . . . . . . . Garrison Access Hacks 11 | . . . . . 1 . . 1 . 1 . . . . 1 . 1 . 1 . . . 2 . . . . . . . 1 . 1 . 1 . . Unlock Access 11 | . . . . . 1 . . 1 . 1 . . . . 1 . 1 . 1 . . . 2 . . . . . . . 1 . 1 . 1 . . Unauthorized Hacks 21 | . 7 . . . 5 . . 1 . . . . . . 1 . 2 . . . 1 . . . 1 1 . . 2 . . . . . . . . Terminals 16 | . 5 . . . 3 . . 1 . . . . . . 1 . 1 . . . 1 . . . 1 1 . . 2 . . . . . . . . Track 1 | . . . . . 1 . . . . . . . . . . . . . . . . . . . . . . . . . . . . . . . . Assimilate 2 | . . . . . . . . . . . . . . . . . 1 . . . . . . . . . . . 1 . . . . . . . . Botnet 10 | . 2 . . . 2 . . 1 . . . . . . 1 . . . . . 1 . . . 1 1 . . 1 . . . . . . . . Sabotage 3 | . 3 . . . . . . . . . . . . . . . . . . . . . . . . . . . . . . . . . . . . Fabricators 1 | . . . . . . . . . . . . . . . . . 1 . . . . . . . . . . . . . . . . . . . . Liberate 1 | . . . . . . . . . . . . . . . . . 1 . . . . . . . . . . . . . . . . . . . . Repair Stations 1 | . 1 . . . . . . . . . . . . . . . . . . . . . . . . . . . . . . . . . . . . Mechanics 1 | . 1 . . . . . . . . . . . . . . . . . . . . . . . . . . . . . . . . . . . . Recycling Units 3 | . 1 . . . 2 . . . . . . . . . . . . . . . . . . . . . . . . . . . . . . . . Mask 1 | . . . . . 1 . . . . . . . . . . . . . . . . . . . . . . . . . . . . . . . . Tunnel 2 | . 1 . . . 1 . . . . . . . . . . . . . . . . . . . . . . . . . . . . . . . . Scanalyzers . | . . . . . . . . . . . . . . . . . . . . . . . . . . . . . . . . . . . . . . Garrison Access . | . . . . . . . . . . . . . . . . . . . . . . . . . . . . . . . . . . . . . . Data Cores Recovered 3 | . . . . . . . . . . . . . . . . . . . 2 . . . . . 1 . . . . . . . . . . . . Used 1 | . . . . . . . . . . . . . . . . . . . 1 . . . . . . . . . . . . . . . . . . Hacking Detections 60 | . 7 . . . 7 2 4 2 2 1 . . . . 2 . 5 . 1 1 2 . 7 2 1 5 . . 2 . 2 1 1 1 1 1 . Full Trace Events 6 | . 1 . . . 1 . . . . . . . . . . . . . . . . . 2 1 . . . . 1 . . . . . . . . Feedback Events . | . . . . . . . . . . . . . . . . . . . . . . . . . . . . . . . . . . . . . . Feedback Blocked . | . . . . . . . . . . . . . . . . . . . . . . . . . . . . . . . . . . . . . . Robot Schematics Acquired . | . . . . . . . . . . . . . . . . . . . . . . . . . . . . . . . . . . . . . . Robots Built . | . . . . . . . . . . . . . . . . . . . . . . . . . . . . . . . . . . . . . . Authchips . | . . . . . . . . . . . . . . . . . . . . . . . . . . . . . . . . . . . . . . Time . | . . . . . . . . . . . . . . . . . . . . . . . . . . . . . . . . . . . . . . Total Robot Build Rating . | . . . . . . . . . . . . . . . . . . . . . . . . . . . . . . . . . . . . . . Part Schematics Acquired 1 | . . . . . . . . . . . . . . . . . . . . . 1 . . . . . . . . . . . . . . . . Parts Built 3 | . . . . . . . . . . . . . . . 2 . . . . . . . 1 . . . . . . . . . . . . . . Authchips . | . . . . . . . . . . . . . . . . . . . . . . . . . . . . . . . . . . . . . . Time 192 | . . . . . . . . . . . . . . . 58 . . . . . . . 134 . . . . . . . . . . . . . . Total Part Build Rating 18 | . . . . . . . . . . . . . . . 14 . . . . . . . 4 . . . . . . . . . . . . . . Parts Repaired 15 | . 10 . . . 3 . . . . . . . . . . . . . . . . . . . . . . . . . 2 . . . . . . Time 484 | . 260 . . . 102 . . . . . . . . . . . . . . . . . . . . . . . . . 122 . . . . . . Parts Recycled . | . . . . . . . . . . . . . . . . . . . . . . . . . . . . . . . . . . . . . . Recycled Matter . | . . . . . . . . . . . . . . . . . . . . . . . . . . . . . . . . . . . . . . Retrieved Matter . | . . . . . . . . . . . . . . . . . . . . . . . . . . . . . . . . . . . . . . Retrieved Components . | . . . . . . . . . . . . . . . . . . . . . . . . . . . . . . . . . . . . . . Parts Scanalyzed 1 | . . . . . . . . . . . . . . . . . . . . . 1 . . . . . . . . . . . . . . . . Part Schematics Acquired 1 | . . . . . . . . . . . . . . . . . . . . . 1 . . . . . . . . . . . . . . . . Parts Damaged . | . . . . . . . . . . . . . . . . . . . . . . . . . . . . . . . . . . . . . . Bothacking | -11 -10 -10 -10 -9 -8 -8 -8 -7 -7 -7 -7 -7 -7 -7 -6 -6 -6 -6 -6 -6 -5 -5 -5 -5 -5 -5 -5 -5 -4 -4 -4 -4 -4 -4 -3 -3 -3 ------------ Run | Jun Mat Min Exi Min Mat Gar Sto Fac Gar Fac Gar Fac Low Low Fac Was Fac Gar Fac Gar Fac Was Fac Gar Fac Ext Cet Arc Fac Was Fac Gar Fac Gar Res Gar Res Used RIF Installer 8 | . . . . . . 1 . . 1 . 1 . . . . . . 1 . 1 . . . . . . . . . . . 1 . 1 . 1 . Coupler Efficiency 1 | . . . . . . . . . . . . . . . . . . . . . . . . . . . . . . . . 1 . . . . . Threat Obfuscator 1 | . . . . . . . . . . . . . . . . . . . . . . . . . . . . . . . . . . 1 . . . Zone Cloak 1 | . . . . . . . . . . . . . . . . . . 1 . . . . . . . . . . . . . . . . . . . Robot Detection 1 | . . . . . . . . . 1 . . . . . . . . . . . . . . . . . . . . . . . . . . . . Alert ID Control 1 | . . . . . . . . . . . . . . . . . . . . 1 . . . . . . . . . . . . . . . . . Structural Interface 1 | . . . . . . . . . . . . . . . . . . . . . . . . . . . . . . . . . . . . 1 . Program Shield 1 | . . . . . . . . . . . 1 . . . . . . . . . . . . . . . . . . . . . . . . . . Robots Hacked 71 | . . . . . . 2 1 . 2 3 4 3 . . 1 6 2 6 . 5 5 6 2 . 2 . . . 4 . . 5 1 3 2 6 . Non-combat 11 | . . . . . . . . . . 1 . . . . 1 . 2 . . . 4 . . . . . . . 2 . . . . . 1 . . Combat 60 | . . . . . . 2 1 . 2 2 4 3 . . . 6 . 6 . 5 1 6 2 . 2 . . . 2 . . 5 1 3 1 6 . Robot Hacks Applied 85 | . . . . . . 2 1 . 3 4 4 3 . . 1 8 2 8 . 5 7 7 2 . 2 . . . 5 . . 6 1 3 5 6 . parse_system 2 | . . . . . . . . . . . . . . . . . . 1 . . . 1 . . . . . . . . . . . . . . . no_distress 2 | . . . . . . . . . . . . . . . . . . . . . 2 . . . . . . . . . . . . . . . . find_chute 2 | . . . . . . . . . . . . . . . . . . . . . 1 . . . . . . . 1 . . . . . . . . ignore_repairs 1 | . . . . . . . . . . . . . . . . . . . . . . . . . . . . . 1 . . . . . . . . find_fabricator 2 | . . . . . . . . . . . . . . . . . . . . . 1 . . . . . . . . . . . . . 1 . . drop_inventory 5 | . . . . . . . . . . . . . . . 1 . 1 . . . 2 . . . . . . . . . . . . . 1 . . ignore_targets 14 | . . . . . . . . . . . . . . . . 8 . . . . . 6 . . . . . . . . . . . . . . . find_garrison 5 | . . . . . . . . . . . . 1 . . . . . . . . . . . . 1 . . . 2 . . . . . 1 . . disable_weapons 3 | . . . . . . . . . 1 . . . . . . . . 1 . . . . . . . . . . . . . . . 1 . . . reboot_system 5 | . . . . . . . . . . . 1 1 . . . . . 1 . . . . 1 . 1 . . . . . . . . . . . . overwrite_iff 17 | . . . . . . . . . . . . . . . . . . 4 . 2 . . . . . . . . 1 . . 4 . . . 6 . formatsys_low 4 | . . . . . . . . . . 2 . . . . . . 1 . . . . . . . . . . . . . . . . . 1 . . formatsys_high 23 | . . . . . . 2 1 . 2 2 3 1 . . . . . 1 . 3 1 . 1 . . . . . . . . 2 1 2 1 . . Relay Couplers Released 99 | . . . . . . 19 . . 10 . 9 . . . 2 . . 13 . 22 . . . . . . . . 2 . . 7 . 8 . 7 . Machine Destruction 86 | . . . . . . 15 . . 10 . 9 . . . 2 . . 13 . 22 . . . . . . . . 2 . . 4 . 5 . 4 . Programmers 13 | . . . . . . 4 . . . . . . . . . . . . . . . . . . . . . . . . . 3 . 3 . 3 . Attached 40 | . . . . . . 2 . . 4 2 2 1 1 . 1 1 . 4 1 5 1 1 1 . . . . . 1 . . 4 1 3 2 2 . Fabnet Peak Effective % . | . . . . . . . . . . . . . . . . . . . . . . . . . . . . . . . . . . . . . . Robots Rewired 16 | . . . . . . . . . . . 3 . . . . . . 2 . . . . . . . 10 1 . . . . . . . . . . Allies Hacked 2 | . . . . . . . . . . 2 . . . . . . . . . . . . . . . . . . . . . . . . . . . Hacks Repelled . | . . . . . . . . . . . . . . . . . . . . . . . . . . . . . . . . . . . . . . Allies | -11 -10 -10 -10 -9 -8 -8 -8 -7 -7 -7 -7 -7 -7 -7 -6 -6 -6 -6 -6 -6 -5 -5 -5 -5 -5 -5 -5 -5 -4 -4 -4 -4 -4 -4 -3 -3 -3 -------- Run | Jun Mat Min Exi Min Mat Gar Sto Fac Gar Fac Gar Fac Low Low Fac Was Fac Gar Fac Gar Fac Was Fac Gar Fac Ext Cet Arc Fac Was Fac Gar Fac Gar Res Gar Res Total Allies 101 | . . . . . . 3 3 . 2 9 7 1 . . . 19 4 7 . 5 1 . 1 . . 14 6 . 1 . . 7 1 2 2 6 . Largest Group 19 | . . . . . . 2 3 . 2 8 5 4 2 . . 19 19 2 2 2 3 . 1 1 . 11 7 3 1 . . 3 2 2 2 1 . Highest-Rated Group 711 | . . . . . . 30 124 . 64 241 96 64 32 . . 702 702 264 264 64 113 . 49 49 . 453 711 327 56 . . 224 192 192 87 42 . Highest-Rated Ally 159 | . . . . . . 20 100 . 32 32 32 16 16 . . 50 50 148 148 32 49 . 49 49 . 159 149 149 56 . . 95 116 116 64 42 . Total Orders 34 | . . . . . . . . . 5 20 1 . . . . . . . . . 4 . . . . 2 2 . . . . . . . . . . STAY 18 | . . . . . . . . . 3 12 1 . . . . . . . . . 2 . . . . . . . . . . . . . . . . FOLLOW 7 | . . . . . . . . . 2 4 . . . . . . . . . . 1 . . . . . . . . . . . . . . . . GUARD 5 | . . . . . . . . . . . . . . . . . . . . . 1 . . . . 2 2 . . . . . . . . . . AID 4 | . . . . . . . . . . 4 . . . . . . . . . . . . . . . . . . . . . . . . . . . Ally Attacks 689 | . . . . . . 2 59 . 10 71 6 41 . . . . 118 16 30 18 18 . 14 . . 133 98 . 4 . . 21 . 16 4 10 . Total Damage 19418 | . . . . . . 99 1709 . 292 1794 176 417 . . . . 4279 580 1133 231 651 . 543 . . 2748 3216 . 94 . . 527 . 606 204 119 . Kills 148 | . . . . . . 1 19 . 4 12 2 6 . . . . 27 3 6 1 7 . 6 . . 22 20 . 1 . . 6 . 3 1 1 . Allies Corrupted 1 | . . . . . . . . . . 1 . . . . . . . . . . . . . . . . . . . . . . . . . . . Allies Melted 2 | . . . . . . . . . . . . . . . . . 1 . 1 . . . . . . . . . . . . . . . . . . Intel | -11 -10 -10 -10 -9 -8 -8 -8 -7 -7 -7 -7 -7 -7 -7 -6 -6 -6 -6 -6 -6 -5 -5 -5 -5 -5 -5 -5 -5 -4 -4 -4 -4 -4 -4 -3 -3 -3 ------- Run | Jun Mat Min Exi Min Mat Gar Sto Fac Gar Fac Gar Fac Low Low Fac Was Fac Gar Fac Gar Fac Was Fac Gar Fac Ext Cet Arc Fac Was Fac Gar Fac Gar Res Gar Res Robot Analysis Total 7 | . 5 . . . 2 . . . . . . . . . . . . . . . . . . . . . . . . . . . . . . . . Derelict Logs Recovered 3 | . . . . 2 . . . . . . . . 1 . . . . . . . . . . . . . . . . . . . . . . . . Drone Launches . | . . . . . . . . . . . . . . . . . . . . . . . . . . . . . . . . . . . . . . Drone Recoveries . | . . . . . . . . . . . . . . . . . . . . . . . . . . . . . . . . . . . . . . Exploration | -11 -10 -10 -10 -9 -8 -8 -8 -7 -7 -7 -7 -7 -7 -7 -6 -6 -6 -6 -6 -6 -5 -5 -5 -5 -5 -5 -5 -5 -4 -4 -4 -4 -4 -4 -3 -3 -3 ------------- Run | Jun Mat Min Exi Min Mat Gar Sto Fac Gar Fac Gar Fac Low Low Fac Was Fac Gar Fac Gar Fac Was Fac Gar Fac Ext Cet Arc Fac Was Fac Gar Fac Gar Res Gar Res Turns Passed 51194 | 318 3144 1223 504 1503 2710 1719 6143 863 1075 1217 878 696 699 153 5987 1811 1564 1205 435 1149 571 1982 2265 892 753 1090 562 347 537 604 2280 1151 35 852 603 1579 95 Spaces Moved 16158 | 55 1029 425 233 384 776 663 629 256 398 436 295 263 267 48 1513 556 755 536 130 496 273 408 969 451 250 507 201 92 224 196 760 426 16 289 360 551 42 Core 55 | . . . . . . . . . . . . . . . . . . . . . . . . . . . . . . . . . . . . 41 14 Treads 10382 | 55 44 . . . 319 234 44 40 118 163 153 263 267 48 1513 556 755 536 130 496 273 408 969 451 250 507 201 92 224 196 760 189 . . . 128 . Legs 1270 | . . . . . . . . . . . . . . . . . . . . . . . . . . . . . . . . 237 16 289 360 368 . Wheels 4409 | . 985 425 233 384 457 429 585 216 280 273 142 . . . . . . . . . . . . . . . . . . . . . . . . . . Hover 21 | . . . . . . . . . . . . . . . . . . . . . . . . . . . . . . . . . . . . . 21 Flight 21 | . . . . . . . . . . . . . . . . . . . . . . . . . . . . . . . . . . . . 14 7 Fastest Speed 40 | 160 160 215 215 175 175 190 190 190 190 190 205 240 240 240 240 160 160 160 165 160 160 160 160 166 162 162 162 242 161 160 160 118 188 113 113 40 40 Average Speed 190 | 160 206 215 215 195 209 207 196 209 209 212 223 240 240 243 240 169 160 166 233 160 160 194 161 166 164 169 201 242 172 180 160 200 188 173 114 160 48 Slowest Speed 490 | 160 215 215 215 215 240 240 240 240 240 240 240 240 240 320 240 240 160 245 245 245 160 240 166 166 166 245 245 242 242 240 242 490 188 188 186 320 120 Overloaded Moves . | . . . . . . . . . . . . . . . . . . . . . . . . . . . . . . . . . . . . . . Propulsion Burnouts . | . . . . . . . . . . . . . . . . . . . . . . . . . . . . . . . . . . . . . . Robots Hopped 2 | . . . . . . . . . . . . . . . . . . . . . . . . . . . . . . . . . . . . 2 . Cave-ins Triggered 3 | . . . . . . . . . . . . . . . . . . . . . . . . . . . . . . 3 . . . . . . . Exploration Rate (%) 41 | 3 88 52 60 51 67 77 72 6 45 14 37 13 44 10 17 96 21 67 6 66 8 100 28 58 8 77 66 79 10 67 16 49 1 39 9 35 2 Regions Visited 37 Branch Regions 9 Pre-discovered Areas 4 | . 1 1 1 . 1 . . . . . . . . . . . . . . . . . . . . . . . . . . . . . . . . Known Exits Taken 11 | . . . . . 1 . 1 1 . 1 . . . . . . 1 . 1 . . . 1 . 1 . . . . . 1 . 1 . 1 . . Unknown Exits Taken 11 | 1 1 1 1 1 . . . . . . . 1 1 1 . . . . . . . . . . . 1 1 1 . . . . . . . . . Scrap Searched 1 | . . . . 1 . . . . . . . . . . . . . . . . . . . . . . . . . . . . . . . . . Spaces Dug 107 | . . . . 3 . . 2 . 3 5 . . 9 . 4 . . . . . 2 . 1 4 . . . . 45 20 8 . . 1 . . . Terrain Destroyed 1657 | . 4 . . 19 4 2 54 53 3 25 5 . 9 . 122 7 39 9 165 34 117 . 121 49 11 108 218 13 180 26 211 19 . 2 7 20 1 Melee 34 | . . . . 3 . . 2 . 3 5 . . 9 . 4 . . . . . 2 . 1 . . . . . 2 3 . . . . . . . Projectile 250 | . . . . 16 . 2 . . . . 4 . . . 52 7 8 . 3 . . . 8 2 11 29 3 13 7 23 35 5 . 2 7 13 . AOE 1370 | . 4 . . . 4 . 52 53 . 20 . . . . 65 . 31 9 162 34 115 . 112 47 . 79 215 . 171 . 176 14 . . . 7 . Terrain Rammed . | . . . . . . . . . . . . . . . . . . . . . . . . . . . . . . . . . . . . . . Walls Destroyed . | . . . . . . . . . . . . . . . . . . . . . . . . . . . . . . . . . . . . . . Machines Disabled . | . . . . . . . . . . . . . . . . . . . . . . . . . . . . . . . . . . . . . . Actions | -11 -10 -10 -10 -9 -8 -8 -8 -7 -7 -7 -7 -7 -7 -7 -6 -6 -6 -6 -6 -6 -5 -5 -5 -5 -5 -5 -5 -5 -4 -4 -4 -4 -4 -4 -3 -3 -3 --------- Run | Jun Mat Min Exi Min Mat Gar Sto Fac Gar Fac Gar Fac Low Low Fac Was Fac Gar Fac Gar Fac Was Fac Gar Fac Ext Cet Arc Fac Was Fac Gar Fac Gar Res Gar Res Total 32779 | 248 1838 685 239 1128 1643 924 5426 525 593 637 439 307 296 63 3572 1257 994 759 208 716 347 1441 1448 521 527 655 325 155 321 353 1438 597 19 557 506 986 86 Wait 12475 | 165 633 215 . 720 613 97 4601 171 50 46 38 11 2 1 1789 556 152 82 30 63 14 895 224 11 219 58 76 11 24 77 355 17 . 158 73 227 1 Move 16121 | 54 1028 424 232 383 776 662 628 255 397 435 294 262 266 47 1513 555 754 535 130 495 273 407 968 450 249 506 200 91 224 192 759 425 16 288 360 546 42 Hop 2 | . . . . . . . . . . . . . . . . . . . . . . . . . . . . . . . . . . . . 2 . Pick Up 401 | 4 35 4 1 . 31 13 22 11 18 9 18 3 . . 30 11 6 14 1 16 4 3 19 4 6 5 10 4 6 8 36 19 . 7 8 15 . Fast Attach 248 | 1 2 . 1 . 11 6 11 1 6 4 2 3 . 1 18 6 4 11 1 10 1 5 29 . 5 3 1 5 5 6 27 21 . 10 8 17 6 Attach 263 | 2 3 . . 6 13 11 9 10 11 19 8 4 3 3 11 2 2 10 1 7 2 5 2 8 2 3 8 3 4 13 26 9 . 11 6 23 3 Detach 83 | . 1 . 2 5 4 2 4 1 5 8 1 2 2 . 4 . . 5 . 2 . 1 3 . . . 5 3 1 2 2 3 . 5 7 2 1 Swap 556 | . 22 11 . 5 45 17 22 10 25 28 14 5 6 . 39 10 10 16 17 29 16 3 43 8 18 19 4 2 25 2 38 24 2 13 4 4 . Drop 435 | 3 10 5 3 1 37 16 36 7 23 11 8 3 1 . 32 21 8 20 1 20 3 10 46 3 2 9 6 6 7 3 33 17 . 5 9 8 2 Fire 1902 | 19 104 26 . 1 113 49 91 59 43 67 50 11 7 11 130 88 54 51 25 54 32 20 108 35 25 52 15 30 22 44 162 62 1 50 30 132 29 Melee 200 | . . . . 7 . 3 2 . 7 7 2 . 9 . 4 8 . 15 . 20 2 92 5 2 . . . . 2 3 . . . . . 10 . Ram 2 | . . . . . . . . . . . . . . . . . . . . . . . . . . . . . . . . . . . . . 2 Kick 1 | . . . . . . . . . . . . . . . . . . . . . . . . . . . . . . . . . . . 1 . . Crush 12 | . . . . . . . . . . 2 . 3 . . . . 4 . . . . . 1 . 1 . . . 1 . . . . . . . . Escape Stasis 77 | . . . . . . 48 . . 8 . 4 . . . 2 . . . 2 . . . . . . . . . . 3 . . . 10 . . . Rewire 1 | . . . . . . . . . . 1 . . . . . . . . . . . . . . . . . . . . . . . . . . . Trap . | . . . . . . . . . . . . . . . . . . . . . . . . . . . . . . . . . . . . . . Miscellaneous . | . . . . . . . . . . . . . . . . . . . . . . . . . . . . . . . . . . . . . . Route ------- -11/Junkyard -10/Materials (discovered 3 exits: [*Mat x2] / *Min) -10/Mines (discovered 2 exits: [*Mat] / *Exi) -10/Exiles -9/Mines (discovered 2 exits: *Mat x2) -8/Materials (discovered 4 exits: *Fac x2 / *Sto / Gar) -8/Garrison (discovered 3 exits: *Sto x3) -8/Storage (discovered 2 exits: *Fac / [Rec]) -7/Factory -7/Garrison (discovered 2 exits: *Fac x2) -7/Factory -7/Garrison (discovered 2 exits: *Fac / *Fac) -7/Factory -7/Lower Caves -7/Lower Caves -6/Factory -6/Waste -6/Factory (discovered 2 exits: [*Low] / Gar) -6/Garrison (discovered 2 exits: *Fac x2) -6/Factory -6/Garrison (discovered 2 exits: *Fac x2) -5/Factory (discovered 5 exits: *Fac / Upp x2 / Ext x2) -5/Waste -5/Factory (discovered 5 exits: *Fac / *Upp x2 / Gar / Gar) -5/Garrison (discovered 3 exits: *Fac x3) -5/Factory -5/Extension (discovered 2 exits: *Fac / *Cet) -5/Cetus (discovered 2 exits: *Fac / *Arc) -5/Archives (discovered 3 exits: *Fac / [*Hub x2]) -4/Factory -4/Waste -4/Factory -4/Garrison -4/Factory -4/Garrison -3/Research -3/Garrison -3/Research History --------- Turn | Location | Event 7 | -11/Junkyard | Discovered new exit (range 3) 319 | -11/Junkyard | Entered Materials 320 | -10/Materials | Build established: Mutant 767 | -10/Materials | Discovered new exit (range 4) 909 | -10/Materials | Repaired Lgt. Treads 938 | -10/Materials | Repaired Assault Rifle? 986 | -10/Materials | Repaired Lgt. Treads 1013 | -10/Materials | Repaired Heat Sink 1080 | -10/Materials | Discovered new exit (range 12) 1480 | -10/Materials | Discovered new exit (range 16) 1770 | -10/Materials | Repaired Assault Rifle 1797 | -10/Materials | Repaired Lgt. Treads 1824 | -10/Materials | Repaired Assault Rifle 1852 | -10/Materials | Repaired Lgt. Treads 1988 | -10/Materials | Central database locked down 3123 | -10/Materials | Repaired Lgt. Treads 3150 | -10/Materials | Repaired Lgt. Armor Plating 3463 | -10/Materials | Entered Mines 3464 | -10/Mines | Learned location of Storage (-8) 3486 | -10/Mines | Met a Derelict shopkeep closing up shop 3513 | -10/Mines | Met a Derelict bent on vengeance 3621 | -10/Mines | Core integrity fell below 50% 3834 | -10/Mines | Deemed a non-threat by the Exiles lab entrance 3834 | -10/Mines | Discovered new exit (range 5) 3905 | -10/Mines | Found a damaged Exp. Sensor Array with a note attached 3948 | -10/Mines | Discovered new exit (range 4) 4686 | -10/Mines | Entered Exiles 4738 | -10/Exiles | Met 8R-AWN 4777 | -10/Exiles | Met EX-HEX 4837 | -10/Exiles | Met EX-BIN 4863 | -10/Exiles | Aligned with FarCom system 4865 | -10/Exiles | Given EX-Vault access code 4921 | -10/Exiles | Opened EX-Vault 4934 | -10/Exiles | Found AWS/Gauss 4980 | -10/Exiles | Warned to stay clear of 0b10 Research branches 5043 | -10/Exiles | Met EX-DEC 5055 | -10/Exiles | Learned location of Zion (-6) 5160 | -10/Exiles | Discovered new exit (range 14) 5190 | -10/Exiles | Left Exiles lab with AWS/Gauss 5190 | -10/Exiles | Entered Mines 5216 | -9/Mines | Found a hidden stash of uninstalled traps 5603 | -9/Mines | Core integrity fell below 20% 6386 | -9/Mines | Excavation squad dispatched 6386 | -9/Mines | A large section of the Mines collapsed 6598 | -9/Mines | Discovered new exit (range 9) 6693 | -9/Mines | Discovered new exit (range 10) 6693 | -9/Mines | Entered Materials 6693 | -8/Materials | Evolved 4 slots: Propulsion x1, Utility x1, Weapon x2 6694 | -8/Materials | Identified exit to Factory 6694 | -8/Materials | Identified exit to Storage 7019 | -8/Materials | Build established: Scavenger-Skirmisher 7338 | -8/Materials | Repaired Imp. Light Armor Plating 7365 | -8/Materials | Repaired Lgt. Treads 8231 | -8/Materials | Repaired Imp. Light Armor Plating 8279 | -8/Materials | Discovered exit to Factory (range 16) 9093 | -8/Materials | First assault squad dispatched 9403 | -8/Materials | Identified exit to Garrison 9403 | -8/Materials | Entered Garrison 9453 | -8/Garrison | Triggered checkpoint 9484 | -8/Garrison | Garrison Relay disabled 9707 | -8/Garrison | Triggered checkpoint 9858 | -8/Garrison | Discovered exit to Storage (range 10) 9896 | -8/Garrison | Triggered checkpoint 9927 | -8/Garrison | Garrison Relay disabled 10022 | -8/Garrison | Triggered checkpoint 10327 | -8/Garrison | Build established: Tank 10465 | -8/Garrison | Discovered exit to Storage (range 13) 10512 | -8/Garrison | Triggered checkpoint 10540 | -8/Garrison | Garrison Relay disabled 10596 | -8/Garrison | Rescued a captive Derelict 10709 | -8/Garrison | Triggered checkpoint 10852 | -8/Garrison | Triggered checkpoint 10921 | -8/Garrison | Installed Relay Interface Framework 10944 | -8/Garrison | Garrison Relay disabled 11072 | -8/Garrison | Discovered exit to Storage (range 14) 11122 | -8/Garrison | Entered Storage 11122 | -8/Storage | Accompanied by 2 allies 11365 | -8/Storage | Met 01-MTF 11522 | -8/Storage | First assault squad dispatched 11553 | -8/Storage | Found Prototype Protection 11553 | -8/Storage | Identified Lgt. Regenerative Plating 11823 | -8/Storage | Discovered exit to Factory (range 8) 12092 | -8/Storage | Discovered new exit (range 13) 12498 | -8/Storage | Build established: Mutant 12749 | -8/Storage | System corruption reached 10% 17201 | -8/Storage | Destroyed 12 combat bots 17265 | -8/Storage | Entered Factory 17265 | -7/Factory | Evolved 2 slots: Power x1, Utility x1 17445 | -7/Factory | Build established: Skirmisher 17635 | -7/Factory | Identified exit to Garrison 17665 | -7/Factory | First assault squad dispatched 17733 | -7/Factory | Garrison activated, responded to threat 18085 | -7/Factory | Garrison activated, responded to threat 18128 | -7/Factory | Entered Garrison 18213 | -7/Garrison | Expanded RIF knowledge: Robot Detection 18252 | -7/Garrison | Triggered checkpoint 18297 | -7/Garrison | Garrison Relay disabled 18399 | -7/Garrison | Triggered checkpoint 18493 | -7/Garrison | Discovered new exit (range 12) 18555 | -7/Garrison | Triggered checkpoint 18584 | -7/Garrison | Learned Factory security intel 18599 | -7/Garrison | Garrison Relay disabled 18640 | -7/Garrison | Triggered checkpoint 18846 | -7/Garrison | Triggered checkpoint 18957 | -7/Garrison | Discovered new exit (range 13) 19095 | -7/Garrison | Found Unknown Device 19095 | -7/Garrison | Identified Launcher Loader 19200 | -7/Garrison | Identified exit to Factory 19203 | -7/Garrison | Entered Factory 19203 | -7/Factory | Accompanied by 2 allies 19381 | -7/Factory | Build established: Scavenger-Skirmisher 19603 | -7/Factory | First assault squad dispatched 19705 | -7/Factory | Build established: Scavenger-Mutant 19816 | -7/Factory | Identified exit to Garrison 19835 | -7/Factory | P-60 Hacker assimilated allied Smith 4a 19925 | -7/Factory | Allied Derelicts emerged from ambush trap array 19953 | -7/Factory | Garrison activated, responded to threat 20022 | -7/Factory | Allied Derelicts emerged from ambush trap array 20162 | -7/Factory | Cargo convoy interrupted 20197 | -7/Factory | Garrison activated, responded to threat 20332 | -7/Factory | Lost 3 parts (1p1u1w) 20338 | -7/Factory | Destroyed 7 combat bots 20412 | -7/Factory | Core integrity fell below 50% 20420 | -7/Factory | Entered Garrison 20426 | -7/Garrison | Triggered checkpoint 20436 | -7/Garrison | Triggered checkpoint 20449 | -7/Garrison | Lost 8 parts (1p3n2u2w) 20510 | -7/Garrison | Expanded RIF knowledge: Program Shield 20672 | -7/Garrison | Garrison Relay disabled 20678 | -7/Garrison | Triggered checkpoint 20969 | -7/Garrison | Build established: Scavenger-Tank 21015 | -7/Garrison | Rescued a captive Derelict 21052 | -7/Garrison | Garrison Relay disabled 21118 | -7/Garrison | Discovered new exit (range 12) 21155 | -7/Garrison | Triggered checkpoint 21222 | -7/Garrison | Discovered new exit (range 5) 21298 | -7/Garrison | Entered Factory 21298 | -7/Factory | Accompanied by 4 allies 21958 | -7/Factory | Discovered new exit (range 9) 21994 | -7/Factory | Entered Lower Caves 21994 | -7/Lower Caves | Accompanied by 2 allies 22095 | -7/Lower Caves | Learned 4 Factory zone layouts 22182 | -7/Lower Caves | Spotted B-75 Beast 22683 | -7/Lower Caves | Discovered new exit (range 4) 22693 | -7/Lower Caves | Entered another Lower Caves area 22698 | -7/Lower Caves | Discovered new exit (range 11) 22765 | -7/Lower Caves | Attracted the attention of an 0b10 outpost 22806 | -7/Lower Caves | Core integrity fell below 20% 22846 | -7/Lower Caves | Entered Factory 22846 | -6/Factory | Evolved 2 slots: Propulsion x1, Utility x1 22875 | -6/Factory | Lost 8 parts (1p3n1u3w) 23087 | -6/Factory | Build established: Scavenger-Mutant 23099 | -6/Factory | Fabricated Railgun (x2) 23938 | -6/Factory | Build established: Scavenger-Tank 24241 | -6/Factory | Cargo convoy interrupted 27180 | -6/Factory | Identified exit to Garrison 27344 | -6/Factory | Garrison activated, responded to threat 27667 | -6/Factory | Garrison activated, responded to threat 28096 | -6/Factory | First assault squad dispatched 28527 | -6/Factory | Lost 3 parts (1p1u1w) 28833 | -6/Factory | Sucked down chute 28833 | -6/Factory | Entered Waste 28852 | -6/Waste | Spotted C-40 Crusher 28887 | -6/Waste | Spotted C-40 Crusher 28921 | -6/Waste | Spotted C-40 Crusher 28921 | -6/Waste | Spotted C-40 Crusher 28966 | -6/Waste | Spotted C-40 Crusher 29137 | -6/Waste | Build established: Scavenger-Mutant 29143 | -6/Waste | Spotted C-40 Crusher 29201 | -6/Waste | Destroyed C-40 Crusher 29247 | -6/Waste | Destroyed C-40 Crusher 29466 | -6/Waste | Destroyed C-40 Crusher 29518 | -6/Waste | Destroyed C-40 Crusher 29826 | -6/Waste | Destroyed C-40 Crusher 29856 | -6/Waste | Destroyed C-40 Crusher 29994 | -6/Waste | Discovered new exit (range 16) 30180 | -6/Waste | Warlord forces began an assault 30553 | -6/Waste | Build established: Scavenger-Tank 30644 | -6/Waste | Entered Factory 30644 | -6/Factory | Accompanied by 19 allies 30912 | -6/Factory | Build established: Scavenger-Skirmisher 31211 | -6/Factory | Garrison activated, responded to threat 31281 | -6/Factory | P-60 Hacker assimilated allied O1-UQM(m) 31520 | -6/Factory | Identified exit to Garrison 31620 | -6/Factory | Discovered new exit (range 7) 31694 | -6/Factory | First assault squad dispatched 31787 | -6/Factory | Destroyed 9 combat bots 32033 | -6/Factory | Found Prototype Launcher 32034 | -6/Factory | Identified Rocket Array 32208 | -6/Factory | Entered Garrison 32263 | -6/Garrison | Triggered checkpoint 32323 | -6/Garrison | Garrison Relay disabled 32518 | -6/Garrison | Triggered checkpoint 32630 | -6/Garrison | Expanded RIF knowledge: Zone Cloak 32678 | -6/Garrison | Triggered checkpoint 32741 | -6/Garrison | Triggered checkpoint 32790 | -6/Garrison | Garrison Relay disabled 32841 | -6/Garrison | Discovered new exit (range 14) 33000 | -6/Garrison | Triggered checkpoint 33068 | -6/Garrison | Garrison Relay disabled 33182 | -6/Garrison | Discovered new exit (range 9) 33196 | -6/Garrison | Spotted B-75 Beast 33209 | -6/Garrison | Rewired B-86 Titan 33218 | -6/Garrison | Destroyed B-75 Beast 33221 | -6/Garrison | Spotted B-90 Cyclops 33225 | -6/Garrison | Rewired B-90 Cyclops 33272 | -6/Garrison | Allies destroyed B-90 Cyclops 33413 | -6/Garrison | Entered Factory 33413 | -6/Factory | Accompanied by 2 allies 33529 | -6/Factory | Build established: Bothacker-Mutant 33610 | -6/Factory | Garrison activated, responded to threat 33763 | -6/Factory | First assault squad dispatched 33848 | -6/Factory | Identified exit to Garrison 33848 | -6/Factory | Entered Garrison 33876 | -6/Garrison | Triggered checkpoint 33911 | -6/Garrison | Destroyed 7 combat bots 33979 | -6/Garrison | Garrison Relay disabled 34078 | -6/Garrison | Spotted B-75 Beast 34078 | -6/Garrison | Spotted B-75 Beast 34104 | -6/Garrison | Triggered checkpoint 34156 | -6/Garrison | Garrison Relay disabled 34232 | -6/Garrison | Triggered checkpoint 34376 | -6/Garrison | Discovered new exit (range 10) 34450 | -6/Garrison | Triggered checkpoint 34484 | -6/Garrison | Garrison Relay disabled 34565 | -6/Garrison | Triggered checkpoint 34634 | -6/Garrison | Discovered new exit (range 13) 34680 | -6/Garrison | Triggered checkpoint 34696 | -6/Garrison | Expanded RIF knowledge: Alert ID Control 34808 | -6/Garrison | Garrison Relay disabled 34874 | -6/Garrison | Garrison Relay disabled 34887 | -6/Garrison | Garrison Relay disabled 34997 | -6/Garrison | Entered Factory 34997 | -5/Factory | Accompanied by 2 allies 34997 | -5/Factory | Evolved 2 slots: Propulsion x1, Utility x1 35083 | -5/Factory | Identified exit to Upper Caves 35083 | -5/Factory | Identified exit to Extension 35244 | -5/Factory | Discovered new exit (range 6) 35297 | -5/Factory | First assault squad dispatched 35386 | -5/Factory | Build established: Botlord-Mutant 35554 | -5/Factory | Destroyed 9 combat bots 35568 | -5/Factory | Sucked down chute 35568 | -5/Factory | Entered Waste 35580 | -5/Waste | Spotted C-40 Crusher 35583 | -5/Waste | EMP discharged 35583 | -5/Waste | System corruption reached 10% 35592 | -5/Waste | Spotted C-40 Crusher 35632 | -5/Waste | Spotted C-40 Crusher 35669 | -5/Waste | Spotted C-40 Crusher 35683 | -5/Waste | EMP discharged 35727 | -5/Waste | Spotted C-40 Crusher 35756 | -5/Waste | Spotted C-40 Crusher 35783 | -5/Waste | EMP discharged 35883 | -5/Waste | EMP discharged 35883 | -5/Waste | System corruption reached 30% 35983 | -5/Waste | EMP discharged 36050 | -5/Waste | Destroyed C-40 Crusher 36058 | -5/Waste | Found Damper Plating 36083 | -5/Waste | EMP discharged 36138 | -5/Waste | Destroyed C-40 Crusher 36153 | -5/Waste | Found Damper Plating 36183 | -5/Waste | EMP discharged 36212 | -5/Waste | Build established: Bothacker-Mutant 36283 | -5/Waste | EMP discharged 36383 | -5/Waste | EMP discharged 36483 | -5/Waste | EMP discharged 36518 | -5/Waste | Destroyed C-40 Crusher 36583 | -5/Waste | EMP discharged 36683 | -5/Waste | EMP discharged 36783 | -5/Waste | EMP discharged 36883 | -5/Waste | EMP discharged 36983 | -5/Waste | EMP discharged 37074 | -5/Waste | Destroyed C-40 Crusher 37083 | -5/Waste | EMP discharged 37183 | -5/Waste | EMP discharged 37234 | -5/Waste | Destroyed C-40 Crusher 37283 | -5/Waste | EMP discharged 37383 | -5/Waste | EMP discharged 37418 | -5/Waste | Discovered new exit (range 12) 37483 | -5/Waste | EMP discharged 37550 | -5/Waste | Entered Factory 37598 | -5/Factory | Identified exit to Garrison 37710 | -5/Factory | Discovered new exit (range 16) 38008 | -5/Factory | Build established: Bothacker-Tank 38056 | -5/Factory | Discovered exit to Upper Caves (range 16) 38589 | -5/Factory | Build established: Bothacker-Gunner 39049 | -5/Factory | Fabricated Rocket Array? 39050 | -5/Factory | First assault squad dispatched 39417 | -5/Factory | Identified exit to Garrison 39467 | -5/Factory | Garrison activated, responded to threat 39503 | -5/Factory | Discovered exit to Upper Caves (range 16) 39719 | -5/Factory | Destroyed 7 combat bots 39815 | -5/Factory | Entered Garrison 39815 | -5/Garrison | Accompanied by 1 ally 39872 | -5/Garrison | Triggered checkpoint 39878 | -5/Garrison | Triggered checkpoint 39881 | -5/Garrison | Triggered checkpoint 39931 | -5/Garrison | Destroyed 16 combat bots 39952 | -5/Garrison | Lost 3 parts (2u1w) 40013 | -5/Garrison | Discovered new exit (range 10) 40048 | -5/Garrison | Triggered checkpoint 40301 | -5/Garrison | Discovered new exit (range 10) 40330 | -5/Garrison | Triggered checkpoint 40470 | -5/Garrison | Triggered checkpoint 40474 | -5/Garrison | Build established: Scavenger-Mutant 40523 | -5/Garrison | Discovered new exit (range 13) 40576 | -5/Garrison | Triggered checkpoint 40707 | -5/Garrison | Entered Factory 40883 | -5/Factory | Build established: Scavenger-Gunner 41251 | -5/Factory | Discovered exit to Extension (range 9) 41460 | -5/Factory | Entered Extension 41741 | -5/Extension | Rescued a captive Derelict 41742 | -5/Extension | Rescued a captive Derelict 41818 | -5/Extension | Rescued A7 41941 | -5/Extension | Rescued a captive Derelict 42134 | -5/Extension | Spotted B-75 Beast 42139 | -5/Extension | Destroyed B-75 Beast 42360 | -5/Extension | First assault squad dispatched 42521 | -5/Extension | Discovered new exit (range 10) 42523 | -5/Extension | Discovered new exit (range 6) 42550 | -5/Extension | Entered Cetus 42550 | -5/Cetus | Accompanied by 2 allies (A7) 42555 | -5/Cetus | Acquired a Cetus Manufacturing Module code from A7 42583 | -5/Cetus | Spotted Cetus Guard 42583 | -5/Cetus | Spotted Cetus Guard 42592 | -5/Cetus | Allies destroyed Cetus Guard 42593 | -5/Cetus | Spotted Cetus Guard 42594 | -5/Cetus | Destroyed Cetus Guard 42597 | -5/Cetus | Spotted Cetus Guard 42600 | -5/Cetus | Allies destroyed Cetus Guard 42606 | -5/Cetus | Allies destroyed Cetus Guard 42671 | -5/Cetus | Started Cetus Manufacturing Module 42696 | -5/Cetus | Manufactured an Enhanced Grunt 42721 | -5/Cetus | Manufactured an Enhanced Grunt 42746 | -5/Cetus | Manufactured an Enhanced Grunt 42771 | -5/Cetus | Manufactured an Enhanced Grunt 42796 | -5/Cetus | Manufactured an Enhanced Grunt 42802 | -5/Cetus | Cetus Manufacturing Module disabled 42832 | -5/Cetus | Discovered new exit (range 16) 42861 | -5/Cetus | Spotted Cetus Guard 42862 | -5/Cetus | Spotted Cetus Guard 42864 | -5/Cetus | Spotted Cetus Guard 42866 | -5/Cetus | Spotted Cetus Guard 42876 | -5/Cetus | Allies destroyed Cetus Guard 42879 | -5/Cetus | Allies destroyed Cetus Guard 42881 | -5/Cetus | Rewired Cetus Guard 42885 | -5/Cetus | Discovered new exit (range 15) 42886 | -5/Cetus | Allies destroyed Cetus Guard 42902 | -5/Cetus | Met Revision 17 43021 | -5/Cetus | Escorted A7 to Cetus Mainframe 43112 | -5/Cetus | Entered Archives 43112 | -5/Archives | Accompanied by 3 allies (A7) 43117 | -5/Archives | Received a hacking code to weaken MAIN.C 43260 | -5/Archives | Found Prototype Device 43260 | -5/Archives | Identified Exp. Thermal Shield 43280 | -5/Archives | Discovered new exit (range 16) 43310 | -5/Archives | Build established: Scavenger-Tank 43318 | -5/Archives | Discovered new exit (range 16) 43359 | -5/Archives | Discovered new exit (range 14) 43396 | -5/Archives | Unable to access archive contents 43459 | -5/Archives | Entered Factory 43459 | -4/Factory | Evolved 2 slots: Propulsion x1, Utility x1 43584 | -4/Factory | Garrison activated, responded to threat 43709 | -4/Factory | First assault squad dispatched 43996 | -4/Factory | Sucked down chute 43996 | -4/Factory | Entered Waste 44011 | -4/Waste | EMP discharged 44057 | -4/Waste | Spotted C-40 Crusher 44106 | -4/Waste | Spotted C-40 Crusher 44111 | -4/Waste | EMP discharged 44111 | -4/Waste | System corruption reached 10% 44196 | -4/Waste | Crushed by falling debris 44211 | -4/Waste | EMP discharged 44228 | -4/Waste | Spotted C-40 Crusher 44248 | -4/Waste | Crushed by Compactor (1 part destroyed, 1 dropped) 44251 | -4/Waste | Crushed by Compactor (1 part destroyed, 1 dropped) 44253 | -4/Waste | Destroyed C-40 Crusher 44258 | -4/Waste | System corruption reached 30% 44258 | -4/Waste | Spotted C-40 Crusher 44267 | -4/Waste | Crushed by falling debris 44285 | -4/Waste | Crushed by Compactor (1 part destroyed, 2 dropped) 44311 | -4/Waste | EMP discharged 44313 | -4/Waste | Crushed by Compactor (1 part destroyed) 44316 | -4/Waste | Crushed by Compactor (1 part destroyed) 44317 | -4/Waste | Destroyed C-40 Crusher 44323 | -4/Waste | Crushed by Compactor (1 part destroyed, 1 dropped) 44326 | -4/Waste | Crushed by Compactor (1 part destroyed, 1 dropped) 44329 | -4/Waste | Crushed by Compactor (1 part destroyed, 2 dropped) 44330 | -4/Waste | Spotted C-40 Crusher 44332 | -4/Waste | Crushed by Compactor (1 part destroyed, 1 dropped) 44361 | -4/Waste | Destroyed C-40 Crusher 44363 | -4/Waste | Lost 12 parts (1p4n5u2w) 44387 | -4/Waste | Found Unknown Protection 44387 | -4/Waste | Identified Damper Plating 44393 | -4/Waste | Spotted C-40 Crusher 44411 | -4/Waste | EMP discharged 44414 | -4/Waste | Destroyed C-40 Crusher 44434 | -4/Waste | Destroyed C-40 Crusher 44435 | -4/Waste | Crushed by falling debris 44472 | -4/Waste | Crushed by Compactor (1 part destroyed) 44511 | -4/Waste | EMP discharged 44586 | -4/Waste | Discovered new exit (range 10) 44600 | -4/Waste | Entered Factory 44711 | -4/Factory | Identified exit to Garrison 44735 | -4/Factory | Build established: Scavenger-Mutant 45247 | -4/Factory | Lost 8 parts (2n3u3w) 45438 | -4/Factory | Build established: Scavenger-Tank 45994 | -4/Factory | Repaired Corrupted KE Penetrator 46038 | -4/Factory | Repaired Med. Treads 46103 | -4/Factory | Build established: Scavenger-Gunner 46350 | -4/Factory | First assault squad dispatched 46811 | -4/Factory | Lost 5 parts (1p2n1u1w) 46856 | -4/Factory | Core integrity fell below 50% 46880 | -4/Factory | Entered Garrison 46986 | -4/Garrison | Expanded RIF knowledge: Coupler Efficiency 47091 | -4/Garrison | Garrison Relay disabled 47205 | -4/Garrison | Triggered checkpoint 47220 | -4/Garrison | Triggered checkpoint 47247 | -4/Garrison | Triggered checkpoint 47317 | -4/Garrison | Triggered checkpoint 47338 | -4/Garrison | Destroyed 8 combat bots 47347 | -4/Garrison | Lost 6 parts (3n2u1w) 47491 | -4/Garrison | Build established: Botlord-Skirmisher 47782 | -4/Garrison | Found embedded Infiltrators 47822 | -4/Garrison | Triggered checkpoint 47823 | -4/Garrison | Build established: Botlord-Tank 47908 | -4/Garrison | Found Unknown Hackware 47908 | -4/Garrison | Identified Relay Coupler [Proto] 47912 | -4/Garrison | Found Relay Coupler [Proto] 47916 | -4/Garrison | Found Relay Coupler [Proto] 47921 | -4/Garrison | Found Relay Coupler [Proto] 48005 | -4/Garrison | Discovered new exit (range 15) 48031 | -4/Garrison | Entered Factory 48031 | -4/Factory | Accompanied by 1 ally 48050 | -4/Factory | Spotted B-86 Titan 48051 | -4/Factory | Assimilated Titan 7a with formatsys_high 48066 | -4/Factory | Identified exit to Garrison 48066 | -4/Factory | Entered Garrison 48066 | -4/Garrison | Accompanied by 2 allies 48142 | -4/Garrison | Expanded RIF knowledge: Threat Obfuscation 48227 | -4/Garrison | Spotted B-86 Titan 48240 | -4/Garrison | Triggered checkpoint 48245 | -4/Garrison | Triggered checkpoint 48378 | -4/Garrison | Core integrity fell below 20% 48401 | -4/Garrison | Destroyed B-86 Titan 48428 | -4/Garrison | Lost 7 parts (1p1n4u1w) 48643 | -4/Garrison | Triggered checkpoint 48736 | -4/Garrison | Lost 5 parts (2n1u2w) 48804 | -4/Garrison | Triggered checkpoint 48898 | -4/Garrison | Discovered new exit (range 12) 48918 | -4/Garrison | Entered Research 48918 | -3/Research | Evolved 2 slots: Power x1, Propulsion x1 49378 | -3/Research | Lost 3 parts (1n2w) 49521 | -3/Research | Identified exit to Garrison 49521 | -3/Research | Entered Garrison 49557 | -3/Garrison | Expanded RIF knowledge: Structural Interface 49584 | -3/Garrison | Triggered checkpoint 49608 | -3/Garrison | System corruption reached 10% 49682 | -3/Garrison | Garrison Relay disabled 49740 | -3/Garrison | Triggered checkpoint 49753 | -3/Garrison | Spotted B-86 Titan 49774 | -3/Garrison | Triggered checkpoint 49812 | -3/Garrison | Triggered checkpoint 49923 | -3/Garrison | Assembled breached garrison interior 50193 | -3/Garrison | System corruption reached 30% 50257 | -3/Garrison | Lost 6 parts (3n2u1w) 50327 | -3/Garrison | Found Hvy. Reflective Plating 50425 | -3/Garrison | Lost 4 parts (2n1u1w) 50787 | -3/Garrison | Lost 3 parts (2n1w) 51053 | -3/Garrison | Core integrity fell below 50% 51073 | -3/Garrison | Released all parts (4) 51087 | -3/Garrison | Core integrity fell below 20% 51094 | -3/Garrison | Discovered new exit (range 12) 51100 | -3/Garrison | Entered Research 51112 | -3/Research | Lost 21 parts (4p3n9u5w) 51113 | -3/Research | Found Prototype Hackware 51113 | -3/Research | Identified Exp. System Shield 51195 | -3/Research | Destroyed by G-67 Veteran with Plasma Rifle Last Messages --------------- 51169_ HV Slug penetrates Wall. 51171_ System corrupted: Heat flow error (+126). 51171_ HV Slug penetrates Wall. 51173_ HV Slug penetrates G-67 Veteran. 51173_ HV Slug penetrates Wall. 51177_ HV Slug penetrates G-67 Veteran. 51179_ Wall collapses. 51179_ HV Slug penetrates G-67 Veteran. 51179_ G-67 Veteran suffers critical hit (Destroy). 51179_ Destroyed Lgt. Antimatter Reactor. 51179_ HV Slug penetrates Wall. 51181_ Imp. Linear Gravjet destroyed. 51181_ HV Slug penetrates G-67 Veteran. 51181_ HV Slug penetrates Wall. 51185_ System corrupted: Hyp. Coil Gun jammed. 51186_ System corrupted: Matter fused (-5). 51187_ Acquired 36 matter. 51188_ Slammed into G-67 Veteran. 51190_ Hyp. Coil Gun destroyed. 51191_ Acquired Xenon Bombardment Thruster. Map ----- +----------------------------------------------------+ | ?????????????????????????????????????? | | ?????????????????????????????????????? | | ?????????????????????????????????????? | | ?????????????????????????????????????? | | ?????????????????????????????????????? | | ?????????????????????????????????????? | | ?????????????????????????????????????? | | ?????????????????????????????????????? | | ?????????????????????????????????????? | | ?????????????????????????????????????? | | ?????????????????????????????????????? | | ?????????????????????????????????????? | | ?????????????????????????????????????? | | ?????????????????????????????????????? | | ?????????????????????????????????????? | | ?????????????????????????????????????? | | ?????????????????????????????????????? | | ?????????????????????????????????????? | | ?????????????????????????????????????? | | ?????????????????????????????????????? | | ########?????????????????????????????? | | # #?????????????????????????????? | | # #?????????????????????????????? | | # ########+###### #??????????? | | # # +??????????? | | # # @ #??????????? | | # *# +??????????? | | # gg #??????????? | | # # ########### ###??????????? | | # # #????????????????????????? | | # # #????????????????????????? | | # # #????????????????????????? | | # # " ???????????????????????? | | # # # ??????????????????????? | | ##+##### + ?????????????????????? | | # # #? ????????????????????? | | # # #?####???##??????????????? | | # # #?????? #??????????????? | | # ]# #???? #??????????????? | | # # #?? #??????????????? | | # # # #??????????????? | | # + + s #??????????????? | | # # # #??????????????? | | # ! # #?? #??????????????? | | # # #???? #??????????????? | | # ! ######??????####??????????????? | | # #?????????????????????????????? | | # #?????????????????????????????? | | ########?????????????????????????????? | | ?????????????????????????????????????? | +----------------------------------------------------+ Best States ------------- Heat Dissipation 96 Energy Generation 51 Energy Capacity 1190 Matter Stores 300 Matter Capacity 300 Sight Range 16 Terrain Scan Density 10 Cloak Strength 3 Additional Mass Support 6 Base Temperature (-) 100 EM Shielding 2 Armor Coverage 1600 Resistance: KI 25 Resistance: TH 30 Resistance: EX 50 Resistance: EM 90 Core Shielding 30 Phase Shifting 15 Evasion (%) 62 Targeting Accuracy 8 Melee Accuracy 8 Launcher Accuracy 40 Target Analysis 6 Recoil Reduction 6 Kinecelleration 40 Offensive Hacking 10 Defensive Hacking 16 Relay Coupler Types 3 Relay Coupler Value 76 Item Schematics ----------------- Rocket Array | -5/Factory | Scanalyzed Robot Schematics ------------------ None Fabricated ------------ Railgun | x2 | -6/Factory | Preloaded Rocket Array | x1 | -5/Factory Alien Tech Used ----------------- None Achievements -------------- None Challenges ------------ None Game ------ Seed UltimateLinkedLog Manual? 0 Play Time 11:25:28 Cumulative 397.1 hours Start 2023.03.04 @ 12:28:04 End 2023.03.08 @ 21:42:03 Sessions 13 Manual Loads 0 Difficulty Rogue Special Mode None Game No. 180 Rogue 180 Adventurer 0 Explorer 0 Win Type - Total 8 Types 4/1/0/1/2/0/0/0/0 Lore% 67 Gallery% 80 Achievement% 71 Wizard Run 0 Options --------- ASCII 0 Keyboard 0 Movement Mouse Keybinds 0 Fullscreen 0 Font 28/SmallcapsGlow Map View 72x54 Tactical HUD 1 Map Filters NONE Filters NONE Steam 1 RUN: ac09f35c-ea83-4922-ab19-b3c1b6b22f73